{"text_format":"3","workbook":"xlsx","n_sheets":5,"sheets":["Cover Page","Section 1 - Preliminaries","Section 2 - Builders Work","Section 3 - Electrical Works","Summary"],"not_rendered":{"images":1,"defined_names":3},"read":"whole","date_system":"1900"}

{"sheet":"Cover Page","index":0,"n_rows":48,"n_cols":4,"rows_kept":48,"merged":[[0,0,0,3],[1,0,1,3],[4,5,4,7],[13,0,13,3],[14,0,14,3],[16,0,16,3],[17,0,17,3],[19,0,19,3],[20,0,20,3],[21,0,21,1],[21,2,21,3],[22,0,22,1],[22,2,22,3],[23,0,23,1],[23,2,23,3],[24,0,24,1],[24,2,24,3],[25,0,25,1],[25,2,25,3],[26,2,26,3],[27,2,27,3],[28,0,28,1],[28,2,28,3],[29,0,29,1],[29,2,29,3],[33,2,33,3],[34,2,34,3],[35,2,35,3],[36,2,36,3],[37,2,37,3],[40,0,40,3],[45,0,45,3]]}
["PROVINCIAL ADMINISTRATION OF KWAZULU-NATAL"]
["DEPARTMENT OF PUBLIC WORKS"]
{"$rows_empty":11}
["BILLS OF QUANTITIES"]
["with GCC for Construction Works - Second Edition 2010"]
[]
["CONTRACTUAL SECTION"]
[]
[]
["PHASE 14: STORM DAMAGED PROGRAMME: REPAIRS AND RENOVATIONS TO STORM DAMAGED SCHOOLS THROUGHOUT THE PROVINCE OF KWAZULU-NATAL:SOUTHERN REGION: CLUSTER 82: IMBIZANE PRIMARY SCHOOL. OPEN BIDS"]
[]
["Engineer/Principal Agent"]
["Ravi Jhupsee Architects cc t/a Architronic"]
["P.O. Box 19393"]
["Dormerton"]
["Durban"]
[4091]
["0312013933 - Tel Number"]
["0312013930 - Fax Number"]
["marvinm@architronic.co.za"]
[]
[]
["Employer:",null,"Region:"]
["Head: Public Works",null,"Head Public Works: Operations"]
["KZN Department of Public Works",null,"KZN Department of Public Works"]
["Private Bag X 9041",null,"X9041"]
["PIETERMARITZBURG",null,"Pietermaritzburg"]
[3200,null,"3200"]
["Tel Number:     033 - 3555569",null,"Tel Number:","033 - 3555569"]
["Fax Number:    N/A",null,"Fax Number:","N/A"]
[]
["Tender Number:           ZNTM01196W"," ","Project Code:","063253"]
["CIDB Grading:         6GB OR HIGHER"," ","Document Date:","13 October 2013"]
["ECDP Number:        N/A"]
[]
["Contracting Party: __________________________________________________________________________"]
["CIDB Registration number:",null,"______________________________________"]
["Central Suppliers Database Registration Number: ",null,"______________________________________"]

{"sheet":"Section 1 - Preliminaries","index":1,"n_rows":14,"n_cols":6,"rows_kept":14}
["ITEM NO","DESCRIPTION","UNIT","QUANTITY","RATE","AMOUNT"]
[]
[null,"SECTION NO. 1"]
[]
[]
[null,"BILL NO. 1"]
[]
[null,"Preliminaries "]
[]
[]
[1,"Preliminaries","Item",1,null,{"$f":"D11*E11","v":0}]
[]
[]
["Bill No. 1","Carried to Summary",{"$nulls":3},{"$f":"SUM(F9:F13)","v":0}]

{"sheet":"Section 2 - Builders Work","index":2,"n_rows":1539,"n_cols":6,"rows_kept":1539}
["ITEM NO","DESCRIPTION","UNIT","QUANTITY","RATE","AMOUNT"]
[]
[null,"SECTION NO. 2"]
[]
[null,"BILL NO. 1"]
[]
[null,"ALTERATIONS (PROVISIONAL)"]
[]
[null,"(CPAP WORK GROUP NO. 102 UNLESS OTHERWISE STATED)"]
[]
[null,"Key:                          Location Description  \nA                               Block A (Library) \nB                               Block B (3 classroom) \nC                               Block C (4 classroom) \nD                               Block D (3 classroom) \nE                               Block E (Female ablution) \nF                               Block F (Staff ablution) \nG                               Block G (Male ablution) \nH                               Block H (Old ablution) \nI                                 Block I (Park home) \nJ                                External works \nK                               General"]
[]
[null,"Tenderers are referred to the Model Preambles for All Trades as published by the Association of South African Quantity Surveyors (Tel. 011-315 4140) and the Architectural, Structural and Electrical Works Information before pricing this Bill of Quantities"]
[]
[null,"SUPPLEMENTARY PREAMBLES"]
[]
[null,"View site:"]
[]
[null,"Before submitting his tender the contractor shall visit the site and satisfy himself as to the nature and extent of the work to be done and the value of the materials contained in the buildings or portions of the buildings to be demolished.  No claim for any variations of the contract sum in respect of the nature and extent of the work or of inferior or damaged materials will be entertained"]
[]
[null,"Damage to existing finishes:"]
[]
[null,"The Contractor will be held responsible for all damage, however caused, to existing finishes and fittings etc. and he must make good all damage at his own expense to the approval of the Principal Agent"]
[]
[null,"Breaking down, demolition and alteration activities and tasks, hacking off of existing plaster, etc. is to be executed with care so as to prevent damage to remaining floor and wall surfaces and finishes (where these are to be retained). Tenders will be deemed to include allowance for any necessary protection of existing surfaces and structures as may be necessary to effect the above, as the cost of repairing damage to existing surfaces and structures will be solely for the Contractors account"]
[]
[null,"Responsibility for site:"]
[]
[null,"The contractor is to note that upon possession of the site by himself, and extending until practical completion is achieved, he is solely responsible for the site, site security, general upkeep and cleaning of the site and all other responsibilities in maintaining a construction site in conformance with but not limited to, the Construction Regulations 2003, all local by-laws, all user client regulations, and all Client regulations and procedures. Tenderers are therefore urged to study all available material and to investigate fully the site and areas contiguous to the site, in order to determine the range and extent of responsibility. No additional monetary and/or time claims will be entertained in respect of the above"]
[]
[null,"Explosives :"]
[]
[null,"No explosives whatsoever may be used for demolition purposes unless otherwise stated"]
[]
[null,"General:"]
[]
[null,"The contract shall carry out the whole of the works with as little mess and noise as possible and with a minimum of disturbance to adjoining classroom blocks and their students. He shall provide proper protection and provide, erect and remove when directed, any temporary tapaulins that may be necessary during the progress of the works, or to the satisfaction of the principal agent"]
[]
[null,"Water supply pipes and other piping that may be encountered and found necessary to disconnect or cut, shall be effectually stopped off or grubbed up and removed, and any new connections that may be necessary shall be made with proper fittings, to the satisfaction of the principal agent"]
[]
[null,"Prices for taking out of doors, windows, etc. shall include for removal of all beads, architraves, ironmongery, etc"]
[]
[null,"Prices for taking out and removing doors and frames shall include for removing door stops, cabin hooks, etc. and making good floor and wall finishes to match existing"]
[]
[null,"With regard to building up of openings in existing walls, cement screeds and pavings, granolithic, tops of walls, etc., shall be levelled and prepared for raising of brickwork"]
[]
[null,"Making good of finishes shall include making good of the brick and concrete surfaces onto which the new finishes are applied, where necessary"]
[]
[null,"The contractor will be required to take all dimensions affecting the existing buildings on the site and he will be held solely responsible for the accuracy of all such dimensions where used in the manufacture of new items (doors, windows, fittings, etc.)"]
[]
[null,"Removal of materials:"]
[]
[null,"Where removal is included in the heading, sub-heading or item description, prices shall be deemed to include for the necessary costs in removal and appropriate disposal of materials including but not limited to labour, transportation and disposal costs. No further claims in this regard will be entertained"]
[]
[null,"Removal of asbestos material:"]
[]
[null,"All preparatory work, alterations, etc., to existing asbestos cement roof sheeting, gutters, rainwater pipes, etc., is to be carried out strictly by an approved and certified specialist company and in accordance with statutory requirements (Occupational Health and Safety Act, 1993 - Asbestos Regulations 2001) and all necessary precautions must be taken when working with and disposing of asbestos cement products and the disposing of waste water resulting from cleaning operations, etc"]
[]
[null,"The following shall apply in respect of asbestos removal:"]
[]
[null,"The removal of asbestos shall be carried out by a certified entity, registered in accordance with the Occupational Health and Safety Act 1993 and the Asbestos Regulation 2001. Asbestos in all forms/building elements that is to be removed, shall be carried out in strict accordance with aforementioned regulation, and a certificate issued by the entity as contemplated in the above, shall be provided per block for the removal thereof, where the term block shall in this context refer to any single, free standing building structure, regardless of size or purpose. Corresponding disposal certificates shall be issued by the facility at which the asbestos is disposed off, with said facility to, prior to the disposal of any asbestos material provide satisfactory proof that the facility is duly registered and fully compliant in terms of the act, to receive the asbestos material. Under no circumtances is the contractor nor any of his duly authorised representatives to sell and/or give away asbestos material to any member/s of the school community, the community in general or the public at large. Should this be found to be occuring, the contractor will be held responsible contractually and may further be prosecuted criminally. The cost for complying with the above, and all requirements of regulation as reflected above is to be priced for in the items for removal of asbestos material. No further claims in this regard will therefore be entertained"]
[]
[null,"TEMPORARY BARRIERS, SCREENS, ETC"]
[]
[null,"Temporary parkhome units"]
[]
[null,"Provide temporary parkhomes on site for educational facilities during the construction phase as herewith measured, including levelling, positioning on site and connection to an electrical supply including issuing compliance certificates"]
[]
[null,"Parkhomes are to be standard classroom size minimum 7 x 7m or nearest size"]
[]
[1,"Provision of parkhome for a period of 12 months","No",5,null,{"$f":"D71*E71","v":0}]
[]
[2,"Provision of two tier steps for 12 months","No",5,null,{"$f":"D73*E73","v":0}]
[]
[3,"Provision of electrical compliance certificates for parkhomes","No",5,null,{"$f":"D75*E75","v":0}]
[]
[4,"Transport to and from site of parkhomes as per distance between supplier and site per return trip","TRIP",5,null,{"$f":"D77*E77","v":0}]
[]
[null,"TEMPORARY ROOF PROTECTION"]
[]
[null,"The Contractor will be held responsible for all damage, howsoever caused, to finishes inside rooms where the existing roof coverings have been removed and he must make good all damage at his own expense to the approval of the Employer"]
[]
[5,"Supply and install temporary waterproofing and weatherproof protection to buildings in the form of uPVC underlay or tarpaulin where roofing and related items have been removed during construction whereby exposing buildings, including the relocation of the protection to various blocks within the works as area. The contractor to allow for maintenance of the waterproofing during periods of exposure to classrooms as well the reuse and reallocation to the blocks as per the contracts construction programme","m2",1124,null,{"$f":"D83*E83","v":0}]
[]
[null,"REMOVAL OF EXISTING WORK"]
[]
[null,"Breaking up and removing reinforced concrete including cutting off and removing reinforcement and cart away"]
[]
[6,"100mm Thick slabs","m2",464,null,{"$f":"D89*E89","v":0}]
[]
[null,"Taking out and removing doors, windows, etc., including thresholds, sills, etc. (building up openings and making good finishes elsewhere)"]
[]
[7,"Timber single door and frame size 900 x 2100mm high","No",28,null,{"$f":"D93*E93","v":0}]
[]
[null,"Note: Tenderers are referred to the foregoing supplementary preambles within this trade when pricing the following item (removal of asbestos)"]
[]
[null,"Taking down and removal of Asbestos by Specialist"]
[]
[8,"Pitched asbestos roof 7 000 x 5 500 x 1500mm high overall including roof covering, timber trusses and purlins, ceilings and cornices, eaves soffit covering, fascias, barge boards, gutters and rainwater pipes","No",2,null,{"$f":"D99*E99","v":0}]
[]
[9,"Pitched asbestos roof 24 000 x 10 000 x 1500mm high overall including roof covering, timber trusses and purlins, ceilings and cornices, eaves soffit covering, fascias, barge boards, gutters and rainwater pipes","No",2,null,{"$f":"D101*E101","v":0}]
[]
[10,"Pitched asbestos roof 17 000 x 10 000 x 1500mm high overall including roof covering, timber trusses and purlins, ceilings and cornices, eaves soffit covering, fascias, barge boards, gutters and rainwater pipes","No",1,null,{"$f":"D103*E103","v":0}]
[]
[11,"Pitched asbestos roof 32 000 x 10 000 x 1500mm high overall including roof covering, timber trusses and purlins, ceilings and cornices, eaves soffit covering, fascias, barge boards, gutters and rainwater pipes","No",1,null,{"$f":"D105*E105","v":0}]
[]
[null,"If the item below is not priced, it is deemed to form part of the Occupational Health and Safety cost in the preliminaries"]
[]
[12,"Issue of certificate of compliance by registered AIA appointed by your asbestos disposal and removal subcontractor, for the safe removal of asbestos contained products before the work on site commences","Item",1,null,{"$f":"D109*E109","v":0}]
[]
[13,"Allow for profit and general attendance ","%",null,null,{"$f":"D111*E111","v":0}]
[]
[null,"Taking down and removing roofs, floors, panelling, ceilings, partitions, etc"]
[]
[14,"Chromadek roof sheets including all fixings","m2",112,null,{"$f":"D115*E115","v":0}]
[]
[15,"Fascias boards fixed to ends of rafters including galvanised steel H-profile joint strips, etc,","m",28,null,{"$f":"D117*E117","v":0}]
[]
[16,"Barge boards fixed to ends of rafters including galvanised steel H-profile joint strips, etc,","m",32,null,{"$f":"D119*E119","v":0}]
[]
[17,"125 x 75mm uPVC Eaves gutters and rainwater pipes","m",28,null,{"$f":"D121*E121","v":0}]
[]
[null,"Taking out and removing ironmongery"]
[]
[18,"Make good existing glazed steel window approximately 900mm x 1200mm high including sanding down thoroughly, applying metal primer and two coats gloss enamel paint, replacing broken glazing, overhauling, adjusting and servicing existing ironmongery to leave complete unit in a perfect condition","No",62,null,{"$f":"D125*E125","v":0}]
[]
[19,"Remove existing chalkboards approximately 4800 x 1200mm high, including fixings, etc. and cart off site","No",12,null,{"$f":"D127*E127","v":0}]
[]
[20,"Remove existing pinning board approximately 1800 x 2800mm high, including fixings, etc. and cart off site","No",12,null,{"$f":"D129*E129","v":0}]
[]
[null,"Hacking up/off and removing granolithic, screeds, plaster, etc from concrete or brickwork and preparing surfaces for new screeds, plaster, etc"]
[]
[21,"25mm Screed from floors","m2",50,null,{"$f":"D133*E133","v":0}]
[]
[null,"Taking  out and removing piping, sanitary fittings, etc including disconnecting  piping  from fittings  and  making good floor and wall finishes (making good tiling and paintwork elsewhere)"]
[]
[22,"Vitreous china wash hand basin","No",8,null,{"$f":"D137*E137","v":0}]
[]
[23,"Vitreous china WC pan with cistern","No",16,null,{"$f":"D139*E139","v":0}]
[]
[null,"MAKING GOOD OF FINISHES ETC"]
[]
[24,"Remove 100mm width of plaster on either side of crack, rake out crack: 6mm X 6mm deep, clean out all loose material and repair crack using Prostruct 506 Flexicoat polymer modified cementitious coating or similar approved, to Manufacturer’s specification","m",125,null,{"$f":"D143*E143","v":0}]
[]
[null,"Making good existing Roof trusses"]
[]
[null,"Repairs to Bottom Chord"]
[]
[25,"Make good existing timber roof truss in position, of tie beam span approximately 8000mm - 94000mm between walls and approximately 1600mm high at apex, including carefully cutting out and removing sections of damaged76 x 114mm bottom chord, replacing with new including bolting new section to old using approved galvanised mild steel bolts, washers, etc., replacing all bottom chord fixings, gang nails, etc. (whether damaged or not), sanding down and sealing entire truss to leave in a perfect condition, including reinstating in position as approved by the Engineer","No",8,null,{"$f":"D149*E149","v":0}]
[]
[null,"Repairs to rafters"]
[]
[26,"Make good existing timber roof truss in position, of tie beam span approximately 8000mm - 94000mm between walls and approximately 1600mm high at apex, including carefully cutting out and removing sections of damaged 76 x 114mm rafters, replacing with new including bolting new section to old using approved galvanised mild steel bolts, washers, etc., replacing all rafter fixings, gang nails, etc. (whether damaged or not), sanding down and sealing entire truss to leave in a perfect condition including reinstating in position as approved by the Engineer","No",4,null,{"$f":"D153*E153","v":0}]
[]
[null,"Repairs to king post"]
[]
[27,"Make good existing timber roof truss in position, of tie beam span approximately 8000mm - 94000mm between walls and approximately 1200mm high at apex, including carefully cutting out and removing sections of damaged 76 x 76mm king post, replacing with new including bolting new section to old using approved galvanised mild steel bolts, washers, etc., replacing all king post fixings, gang nails, etc. (whether damaged or not), sanding down and sealing entire truss to leave in a perfect condition, including reinstating in position as approved by the Engineer","No",4,null,{"$f":"D157*E157","v":0}]
[]
[null,"Repairs to Bracings"]
[]
[28,"Make good existing timber roof truss in position, of tie beam span approximately 8000mm - 94000mm between walls and approximately 1200mm high at apex, including carefully cutting out and removing sections of damaged 76 x 52mm bracings and intermediate posts and supports, replacing with new including bolting new section to old using approved galvanised mild steel bolts, washers, etc., replacing all king post fixings, gang nails, etc. (whether damaged or not), sanding down and sealing entire truss to leave in a perfect condition, including reinstating in position as approved by the Engineer","No",12,null,{"$f":"D161*E161","v":0}]
[]
[null,"Repairs to Queen posts"]
[]
[29,"Make good existing timber roof truss in position, of tie beam span approximately 8000mm - 94000mm between walls and approximately 1200mm high at apex, including carefully cutting out and removing sections of damaged 76 x 52mm queen posts and/or intermediate and diagonal bracing and/or supports, replacing with new including bolting new section to old using approved galvanised mild steel bolts, washers, etc., replacing all queen posts and intermediate and diagonal bracing and supports fixings, gang nails, etc. (whether damaged or not), sanding down and sealing entire truss to leave in a perfect condition, including reinstating in position as approved by the Engineer","No",2,null,{"$f":"D165*E165","v":0}]
[]
[null,"Making good untinted granolithic"]
[]
[30,"Floors in patches","m2",62,null,{"$f":"D169*E169","v":0}]
[]
[null,"Making good internal cement plaster"]
[]
[31,"Walls in patches","m2",370,null,{"$f":"D173*E173","v":0}]
[]
[null,"Making good external cement plaster"]
[]
[32,"Walls in patches","m2",260,null,{"$f":"D177*E177","v":0}]
[]
["Bill No. 1","Carried to Summary",{"$nulls":3},{"$f":"SUM(F68:F178)","v":0}]
[]
[null,"BILL NO. 2"]
[]
[null,"EARTHWORKS (PROVISIONAL)"]
[]
[null,"(CPAP WORK GROUP NO. 104 UNLESS OTHERWISE STATED)"]
[]
[null,"Key:                          Location Description  \nA                               Block A (Library) \nB                               Block B (3 classroom) \nC                               Block C (4 classroom) \nD                               Block D (3 classroom) \nE                               Block E (Female ablution) \nF                               Block F (Staff ablution) \nG                               Block G (Male ablution) \nH                               Block H (Old ablution) \nI                                 Block I (Park home) \nJ                                External works \nK                               General"]
[]
[null,"Tenderers are referred to the Model Preambles for All Trades as published by the Association of South African Quantity Surveyors (Tel. 011-315 4140) and the Architectural and Structural Works Information before pricing this Bill of Quantities"]
[]
[null,"SUPPLEMENTARY PREAMBLES"]
[]
[null,"Nature of ground"]
[]
[null,"The nature of the ground is assumed to be loose sandy material, therefore 'earth', but possibly interspersed with 'soft rock' or 'hard rock' "]
[]
[null,"Excavation for working space in rock "]
[]
[null,"Notwithstanding clause 11 of the Standard System of Measuring Building Work, excavation for working space in rock will be measured in cubic metres to the extent executed and given as 'extra over' bulk excavation or trench and hole excavation as the case may be"]
[]
[null,"Carting away of excavated material"]
[]
[null,"Descriptions of carting away of excavated material shall be deemed to include loading excavated material onto trucks directly from the excavations or, alternatively, from stock piles situated on the building site"]
[]
[null,"Filling"]
[]
[null,"Notwithstanding the reference to prescribed multiple handling in clause 1 of the Standard System of Measuring Building Work, prices for filling and backfilling shall include for all selection and any necessary multiple handling of material"]
[]
[null,"Testing "]
[]
[null,"Prices for filling are to include for all necessary density tests in accordance with SANS 10400"]
[]
[null,"EXCAVATION, FILLING, ETC OTHER THAN BULK"]
[]
[null,"Excavation in earth not exceeding 2m deep"]
[]
[1,"Reduced levels under floors","m3",70,null,{"$f":"D217*E217","v":0}]
[]
[null,"Extra over trench and hole excavations in earth for excavation in"]
[]
[2,"Soft rock","m3",7,null,{"$f":"D221*E221","v":0}]
[]
[null,"Extra over all excavations for carting away"]
[]
[3,"Surplus material from excavations and/or stock piles on site to a dumping site to be located by the contractor","m3",70,null,{"$f":"D225*E225","v":0}]
[]
[null,"Earth filling supplied by the contractor compacted to 98% Mod AASHTO density"]
[]
[4,"G5 material under floors","m3",70,null,{"$f":"D229*E229","v":0}]
[]
[null,"Compaction of surfaces"]
[]
[5,"Compaction of ground surface under floors etc including scarifying for a depth of 150mm, breaking down oversize material, adding suitable material where necessary and compacting to 95% Mod AASHTO density","m2",464,null,{"$f":"D233*E233","v":0}]
[]
[null,"Prescribed density tests on filling"]
[]
[6,"\"Modified AASHTO Density\" test","No",8,null,{"$f":"D237*E237","v":0}]
[]
[null,"SOIL POISONING"]
[]
[null,"Soil insecticide"]
[]
[7,"Under floors etc including forming and poisoning shallow furrows against foundation walls etc, filling in furrows and ramming","m2",464,null,{"$f":"D243*E243","v":0}]
[]
["Bill No. 2","Carried to Summary",{"$nulls":3},{"$f":"SUM(F211:F244)","v":0}]
[]
[null,"BILL NO. 3"]
[]
[null,"CONCRETE, FORMWORK AND REINFORCEMENT"]
[]
[null,"(CPAP WORK GROUP NO. 110 UNLESS OTHERWISE STATED)"]
[]
[null,"Key:                          Location Description  \nA                               Block A (Library) \nB                               Block B (3 classroom) \nC                               Block C (4 classroom) \nD                               Block D (3 classroom) \nE                               Block E (Female ablution) \nF                               Block F (Staff ablution) \nG                               Block G (Male ablution) \nH                               Block H (Old ablution) \nI                                 Block I (Park home) \nJ                                External works \nK                               General"]
[]
[null,"Tenderers are referred to the Model Preambles for All Trades as published by the Association of South African Quantity Surveyors (Tel. 011-315 4140) and the Architectural and Structural Works Information before pricing this Bill of Quantities"]
[]
[null,"SUPPLEMENTARY PREAMBLES"]
[]
[null,"Cost of tests "]
[]
[null,"The costs of making, storing and testing of concrete test cubes as required under clause 7 Tests of SABS 1200 G shall include the cost of providing cube moulds necessary for the purpose, for testing costs and for submitting reports on the tests to the principal agent. The testing shall be undertaken by an independent firm or institution nominated by the contractor to the approval of the principal agent. (Test cubes are measured separately) "]
[]
[null,"Formwork "]
[]
[null,"Descriptions of formwork shall be deemed to include use and waste only (except where described as 'left in' or 'permanent'), for fitting together in the required forms, wedging, plumbing and fixing to true angles and surfaces as necessary to ensure easy release during stripping and for reconditioning as necessary before re\u0002use.The vertical strutting shall be carried down to such construction as is sufficiently strong to afford the required support without damage and shall remain in position until the newly constructed work is able to support itself. Formwork to soffits of solid slabs etc. shall be deemed to be to slabs not exceeding 250mm thick unless otherwise described. Formwork to soffits of slabs, beams, etc. shall be deemed to be propped up exceeding 1,5m and not exceeding 3,5m high unless otherwise described.Formwork to sides of bases, pile caps, ground beams, etc. will only be measured where it is prescribed by the engineer for design reasons. Formwork necessitated by irregularity or collapse of excavated faces will not be measured and the cost thereof shall be deemed to be included in the allowance for taking the risk of collapse of the sides of the excavations, provision for which is made in Earthworks."]
[]
[null,"REINFORCED CONCRETE CAST AGAINST EXCAVATED SURFACES"]
[]
[null,"25MPa/19mm concrete"]
[]
[1,"Surface beds and thickenings, etc cast in panels on waterproofing","m3",46,null,{"$f":"D271*E271","v":0}]
[]
[null,"TEST BLOCKS"]
[]
[2,"Making and testing 150 x 150 x 150mm concrete strength test cube (Provisional)","Sets",4,null,{"$f":"D275*E275","v":0}]
[]
[null,"CONCRETE SUNDRIES"]
[]
[null,"Finishing top surfaces of concrete smooth with a power float"]
[]
[3,"Surface beds, slabs, etc to falls","m2",464,null,{"$f":"D281*E281","v":0}]
[]
[null,"MOVEMENT JOINTS ETC"]
[]
[null,"Two sheets of masonite with smooth surfaces as slip joints between horizontal concrete and brick surfaces including cement mortar bed"]
[]
[4,"Not exceeding 300mm wide","m",196,null,{"$f":"D287*E287","v":0}]
[]
[null,"Expansion joints with bitumen impregnated softboard between vertical concrete and brick surfaces"]
[]
[5,"12mm Joints not exceeding 300mm high","m",196,null,{"$f":"D291*E291","v":0}]
[]
[null,"Saw cut joints"]
[]
[6,"5 x 30mm Saw cut joints in top of concrete","m",52,null,{"$f":"D295*E295","v":0}]
[]
[null,"REINFORCEMENT (PROVISIONAL) (CPAP WORK Group No. 114)"]
[]
[null,"Fabric reinforcement"]
[]
[7,"Type 193 fabric reinforcement in concrete surface beds, slabs, etc","m2",464,null,{"$f":"D301*E301","v":0}]
[]
["Bill No. 3","Carried to Summary",{"$nulls":3},{"$f":"SUM(F266:F302)","v":0}]
[]
[null,"BILL NO. 4"]
[]
[null,"MASONRY"]
[]
[null,"(CPAP WORK GROUP NO. 116 UNLESS OTHERWISE STATED)"]
[]
[null,"Key:                          Location Description  \nA                               Block A (Library) \nB                               Block B (3 classroom) \nC                               Block C (4 classroom) \nD                               Block D (3 classroom) \nE                               Block E (Female ablution) \nF                               Block F (Staff ablution) \nG                               Block G (Male ablution) \nH                               Block H (Old ablution) \nI                                 Block I (Park home) \nJ                                External works \nK                               General"]
[]
[null,"Tenderers are referred to the Model Preambles for All Trades as published by the Association of South African Quantity Surveyors (Tel. 011-315 4140) and the Architectural, Structural and Electrical Information before pricing this Bill of Quantities"]
[]
[null,"SUPPLEMENTARY PREAMBLES"]
[]
[null,"Proprietary items or materials"]
[]
[null,"Proprietary items or materials where specified are to be of the brand specified or other approved by the Representative / Agent"]
[]
[null,"BRICKWORK"]
[]
[null,"Sizes in description:"]
[]
[null,"Where sizes in descriptions are given in brick units, 'one brick' shall represent the length and 'half brick' the width of a brick"]
[]
[null,"Hollow walls:"]
[]
[null,"Descriptions of hollow walls shall be deemed to include leaving every fifth perpend of the bottom course of the external skin open as a weep hole"]
[]
[null,"Bagged and sealed walls:"]
[]
[null,"Walls in two skins described as 'bagged and sealed' shall be deemed to include having the outer face of the inner skin bagged with 1:6 cement and sand mixture and sealed with two coats bitumen emulsion waterproofing coating"]
[]
[null,"Face bricks:"]
[]
[null,"Bricks shall be ordered timeously to obtain uniformity in size and colour"]
[]
[null,"Pointing:"]
[]
[null,"Descriptions of recessed pointing to fair face brickwork and face brickwork shall be deemed to include square recessed, hollow recessed, weathered pointing, etc."]
[]
[null,"SUPERSTRUCTURE"]
[]
[null,"Brickwork of NFP bricks in class II mortar"]
[]
[1,"One brick walls","m2",231,null,{"$f":"D347*E347","v":0}]
[]
[null,"BRICKWORK SUNDRIES"]
[]
[null,"Brickwork reinforcement"]
[]
[2,"150mm Wide reinforcement built in horizontally","m",792,null,{"$f":"D353*E353","v":0}]
[]
["Bill No. 4","Carried to Summary",{"$nulls":3},{"$f":"SUM(F342:F354)","v":0}]
[]
[null,"BILL NO. 5"]
[]
[null,"WATERPROOFING"]
[]
[null,"(CPAP WORK GROUP NO. 120 UNLESS OTHERWISE STATED)"]
[]
[null,"Key:                          Location Description  \nA                               Block A (Library) \nB                               Block B (3 classroom) \nC                               Block C (4 classroom) \nD                               Block D (3 classroom) \nE                               Block E (Female ablution) \nF                               Block F (Staff ablution) \nG                               Block G (Male ablution) \nH                               Block H (Old ablution) \nI                                 Block I (Park home) \nJ                                External works \nK                               General"]
[]
[null,"Tenderers are referred to the Model Preambles for All Trades as published by the Association of South African Quantity Surveyors (Tel. 011-315 4140) and the Architectural and Structural Works Information before pricing this Bill of Quantities"]
[]
[null,"SUPPLEMENTARY PREAMBLES"]
[]
[null,"Proprietary items or materials"]
[]
[null,"Proprietary items or materials where specified are to be of the brand specified or other approved by the Representative / Agent"]
[]
[null,"DAMP-PROOFING OF WALLS AND FLOORS"]
[]
[null,"One layer of 375 micron \"Consol Plastics Brikgrip DPC\" or equally approved embossed damp proof course"]
[]
[1,"In walls","m2",13,null,{"$f":"D377*E377","v":0}]
[]
[null,"One layer of 250 micron \"Consol Plastics Gunplas USB Green\" or equally approved waterproof sheeting sealed at laps with \"Gunplas Pressure Sensitive Tape\""]
[]
[2,"Under surface beds","m2",464,null,{"$f":"D381*E381","v":0}]
[]
[null,"JOINT SEALANTS ETC"]
[]
[null,"Two-part grey polysulphide sealing compound including backing cord, bond breaker, primer, etc"]
[]
[3,"5 x 10mm In saw cut joints in floors","m",248,null,{"$f":"D387*E387","v":0}]
[]
["Bill No. 5","Carried to Summary",{"$nulls":3},{"$f":"SUM(F372:F388)","v":0}]
[]
[null,"BILL NO. 6"]
[]
[null,"ROOF COVERINGS ETC"]
[]
[null,"(CPAP WORK GROUP NO. 124 UNLESS OTHERWISE STATED)"]
[]
[null,"Key:                          Location Description  \nA                               Block A (Library) \nB                               Block B (3 classroom) \nC                               Block C (4 classroom) \nD                               Block D (3 classroom) \nE                               Block E (Female ablution) \nF                               Block F (Staff ablution) \nG                               Block G (Male ablution) \nH                               Block H (Old ablution) \nI                                 Block I (Park home) \nJ                                External works \nK                               General"]
[]
[null,"Tenderers are referred to the Model Preambles for All Trades as published by the Association of South African Quantity Surveyors (Tel. 011-315 4140) and the Architectural, Structural and Electrical Information before pricing this Bill of Quantities"]
[]
[null,"SUPPLEMENTARY PREAMBLES"]
[]
[null,"Proprietary items or materials"]
[]
[null,"Proprietary items or materials where specified are to be of the brand specified or other approved by the Representative / Agent"]
[]
[null,"Sheeting:"]
[]
[null,"The roof sheeting shall be 0.8mm thick full hard IBR profile galvanised mild steel or other approved roof sheets, roll formed in continuous lengths and cut to length by a pneumatic cut-off process. A certificate verifying compliance to all current SANS codes in respect to galvanised sheeting shall be issued by the manufacturer"]
[]
[null,"Finishing of sheets:"]
[]
[null,"The paint finish shall be colour plus on one side and standard grey finish on the other side"]
[]
[null,"Fixing of sheets:"]
[]
[null,"The roof sheeting shall be laid in long lengths, narrow flutes outermost, with single flute sidelaps facing away from prevailing wind. All sheets shall be secured to timber purlins utilising approved roofing screws in strict accordance to the manufacturers instructions. Sheeting is to be drilled and not punched, with side laps filled with approved Mastic sealant. Sheeting is to protrude a minimum of 50mm from ends of rafters"]
[]
[null,"Flashings:"]
[]
[null,"Flashings shall be approved by the manufacturer and fixed to the sheeting with approved fixings. Prior to flashings being fixed, all troughs at the apex shall be stop-ended to the full depth of the sheet in order to prevent any penetration of wind driven water. The trough shall be lipped at the eaves end to form a drip. Flashing flanges shall be notched to the sheet profile where necessary. Care shall be taken to ensure that no sheeting or flashing will be cut with abrasive disc on roof surface in order to prevent steel spatter from penetrating colour coated areas"]
[]
[null,"Erection:"]
[]
[null,"Every precaution shall be taken to prevent damage to roof sheets during all stages of construction. Duck boards should be used when necessary to protect the sheeting from damage. Sheeting which has become deformed or damaged in any way, shall be replaced, at no additional cost to the contract"]
[]
[null,"Safety:"]
[]
[null,"The contractor shall exercise special care when handling long length sheeting, particularly in windy conditions. Should work be interrupted for any reason, all loose sheeting and incomplete sections must be adequately secured against possible movement by wind and gravity"]
[]
[null,"Guarantee:"]
[]
[null,"The manufacturer shall comply with ISO9002 Quality Management System. Sheeting shall be laid in strict accordance with manufacturers specifications by an approved contractor. A written and approved five (5) year guarantee of site workmanship and water tightness shall be issued after final inspection of roof sheets by the manufacturer"]
[]
[null,"TROUGHED METAL SHEETING AND ACCESSORIES"]
[]
[null,"0.58mm Thick galvanized \"Colourbond\" IBR profile metal sheeting or equal approved sheeting, colour to the determined on site, fixed to timber purlins with and including approved roofing screws with 26mm diameter galvanised washers and rubber gasket (timber purlins measured elsewhere) and fixed strictly in accordance with the manufacturer's instructions "]
[]
[1,"Roof covering with pitch not exceeding 25 degrees","m2",1940,null,{"$f":"D439*E439","v":0}]
[]
[2,"Ridge capping 462mm girth","m",125,null,{"$f":"D441*E441","v":0}]
[]
[3,"Side wall flashing 462mm girth","m",250,null,{"$f":"D443*E443","v":0}]
[]
[4,"Apex flashing 660mm girth","m",154,null,{"$f":"D445*E445","v":0}]
[]
[5,"Hot dip galvanised metal polyclosures to under ridge capping and eaves","m",404,null,{"$f":"D447*E447","v":0}]
[]
[6,"Sondor IBR pattern polyclosure under ridge capping and eaves","m",404,null,{"$f":"D449*E449","v":0}]
[]
[7,"Extra over roof sheet for fixing every crown at eaves","m",154,null,{"$f":"D451*E451","v":0}]
[]
[8,"Extra over for fixing screws at every ridge","m",250,null,{"$f":"D453*E453","v":0}]
[]
[null,"ROOF AND WALL INSULATION"]
[]
[null,"\"Super Sisalation Heavy Industrial Grade 430\" or equally approved - Double sided reflective foil laminate incorporating layers of kraft paper and reinforcing scrim, laminated together with low density polyethylene (293gsm)"]
[]
[9,"Insulation laid taut over timber rafters (at approximately 1200mm centres) and fixed concurrent with tiling battens, purlins, etc","m2",1133,null,{"$f":"D459*E459","v":0}]
[]
["Bill No. 6","Carried to Summary",{"$nulls":3},{"$f":"SUM(F437:F460)","v":0}]
[]
[null,"BILL NO. 7"]
[]
[null,"CARPENTRY AND JOINERY"]
[]
[null,"(CPAP WORK GROUP NO. 126 UNLESS OTHERWISE STATED)"]
[]
[null,"Key:                          Location Description  \nA                               Block A (Library) \nB                               Block B (3 classroom) \nC                               Block C (4 classroom) \nD                               Block D (3 classroom) \nE                               Block E (Female ablution) \nF                               Block F (Staff ablution) \nG                               Block G (Male ablution) \nH                               Block H (Old ablution) \nI                                 Block I (Park home) \nJ                                External works \nK                               General"]
[]
[null,"Tenderers are referred to the Model Preambles for All Trades as published by the Association of South African Quantity Surveyors (Tel. 011-315 4140) and the Architectural, Structural and Electrical Information before pricing this Bill of Quantities"]
[]
[null,"SUPPLEMENTARY PREAMBLES"]
[]
[null,"Fixing:"]
[]
[null,"Items described as 'nailed' shall be deemed to be fixed with hardened steel nails or pins, or to be shot-pinned, to brickwork or concrete"]
[]
[null,"Items described as 'plugged' shall be deemed to include screwing to fibre, plastic or metal plugs at not exceeding 500mm centres, and where described as 'bolted', the bolts have been given elsewhere"]
[]
[null,"Joinery:"]
[]
[null,"Descriptions of frames shall be deemed to include frames, transomes, rails, etc."]
[]
[null,"Descriptions of hardwood joinery shall be deemed to include sinking and pelleting heads and nuts of bolts"]
[]
[null,"Decorative thermosetting plastic laminate covering:"]
[]
[null,"Laminate covering shall be glued under pressure and edge strips of same shall be butt jointed at junctions with adjacent similar finish"]
[]
[null,"Prefabricated plate nailed timber roof truss contruction:"]
[]
[null,"NOTE: The following is applicable in respect of roof trusses:"]
[]
[null,"The Contractor shall allow for all items deemed necessary for the proper design, fabrication and erection of the roof trusses, bracing, etc."]
[]
[null,"The materials and design of the roof construction shall be in accordance with the relevant edition of the South African National Standards (SANS) and the Standard Building Regulations (SBR)"]
[]
[null,"The design of trusses and permanent bracing shall be carried out under the control of a registered professional engineer who shall provide the requisite certificate of stability on completion of the roof contruction. All calculations and drawing, including a key plan of each building showing the position of each type of member shall be submitted timeously to the consulting Structural Engineer for his approval before fabrication is commenced"]
[]
[null,"Prices are to include for the provision of adequate temporary bracing during construction to the approval of the Departmental Engineer"]
[]
[null,"The dimensions in the descriptions of the trusses are nominal and actual measurements are to be obtained from the architect and/or the site before fabrication commences"]
[]
[null,"Trusses must be designed in accordance with the environmental conditions of the area"]
[]
[null,"The following roof trusses are to a pitch not exceeding 25 degrees (unless otherwise stated) spaced at approximately 1200mm centres and are to receive 0,8mm thick IBR profile roof sheets on timber purlins and a nailed up ceiling under"]
[]
[null,"Pretreatment of timber:"]
[]
[null,"This service falls within the areas defined in the National Building Regulations for Treatment of Timber against insect pest affecting softwood fixed permanently in all buildings"]
[]
[null,"The Regulations require that timber be treated in terms of the relevant SANS. Tenderers are to make allowance in their rates"]
[]
[null,"Prefabricated roof trusses, etc:"]
[]
[null,"All timber roof trusses including nail-plated trusses and bolted trusses with lapped members must comply with SANS"]
[]
[null,"Prices for roof trusses are to include for all temporary bracing and supports and for all necessary top and bottom chord bracing, wind bracing and runners where required and overhanging ends are to be wrot faced all round"]
[]
[null,"Plate nailed timber roof truss construction:"]
[]
[null,"The following is applicable in respect of roof trusses: Trusses are at maximum 1200mm centres. Roof covering is 0,8mm thick IBR profile roof sheets on timber purlins. Ceilings are plasterboard on softwood brandering. The dimensions in the descriptions of the trusses are nominal and actual measurements are to be obtained from the Architect and/or the site before design or fabrication commences"]
[]
[null,"PREFABRICATED ROOF TRUSSES, ETC."]
[]
[null,"The following in plate nailed timber roof trusses with pitch not exceeding 25 degrees from an approved supplier, delivered to site, hoisted into position, fixed and braced on timber wall plates to SABS 0243:"]
[]
[null,"Prefabricated plate nailed timber roof truss construction"]
[]
[null,"The following is applicable in respect of roof trusses:"]
[]
[null,"Trusses are at maximum 1200mm centres Roof covering is \"Chromadek\" 0.8mm thick ISQ230 or equally approved, AZ150 spelter galvanised steel sheeting on purlins. The references given in the descriptions are to the respective types of trusses. The dimensions in the descriptions of the trusses are nominal and actual measurements are to be obtained from the architect and/or the site before design or fabrication commences"]
[]
[1,"Design, supply and install roof truss system size complete and in accordance with SANS, including cross battens at hips, valleys longitudinal bracing, etc. all in accordance with the specifications to building size approximately 7 000mm x 5 500mm on plan and with a clear span between walls approximately 7 500mm ( approximate on flat 38.5m2 ) (17.5 degree pitch)","No",2,null,{"$f":"D535*E535","v":0}]
[]
[2,"Design, supply and install roof truss system size complete and in accordance with SANS, including cross battens at hips, valleys, longitudinal bracing, etc. all in accordance with the specifications to building size approximately 17 000mm x 10 000mm on plan and with a clear span between walls approximately 7 500mm ( approximate on flat 170m2 ) (17.5 degree pitch)","No",1,null,{"$f":"D537*E537","v":0}]
[]
[3,"Design, supply and install roof truss system size complete and in accordance with SANS, including cross battens at hips, valleys, longitudinal bracing, etc. all in accordance with the specifications to building size approximately 24 000mm x 9 400mm on plan and with a clear span between walls approximately 7 500mm ( approximate on flat 225m2 ) ( 17.5 degree pitch)","No",2,null,{"$f":"D539*E539","v":0}]
[]
[4,"Design, supply and install roof truss system size complete and in accordance with SANS, including cross battens at hips, valleys longitudinal bracing, etc. all in accordance with the specifications to building size approximately 32 000mm x 9 400mm on plan and with a clear span between walls approximately 7 500mm ( approximate on flat 300.8m2 ) ( 17.5 degree pitch)","No",1,null,{"$f":"D541*E541","v":0}]
[]
[5,"Provide manufacture and installation certificates (TR1 and TR2), to be supplied by the contractor and approved by the Consulting Structural Engineer after manufacture and installation respectively","Item",6,null,{"$f":"D543*E543","v":0}]
[]
[null,"ROOFS ETC"]
[]
[null,"Sawn softwood"]
[]
[6,"38 x 114mm Wall plates","m",222,null,{"$f":"D549*E549","v":0}]
[]
[7,"50 x 76mm Purlins","m",1734,null,{"$f":"D551*E551","v":0}]
[]
[8,"76 x 76mm Splayed purlins","m",444,null,{"$f":"D553*E553","v":0}]
[]
[null,"Laminated Wrot Saligna"]
[]
[9,"75 x 287mm wrought saligna beams bolted to steel post (post elsewhere measured)","m",380,null,{"$f":"D557*E557","v":0}]
[]
[null,"Sundries"]
[]
[10,"Wrought faces on sawn timbers","m2",30,null,{"$f":"D561*E561","v":0}]
[]
[11,"Two coats creosote on sawn timbers","m2",30,null,{"$f":"D563*E563","v":0}]
[]
[12,"600mm Long wrought end to 38 x 114mm sawn timber and splayed cut","No",152,null,{"$f":"D565*E565","v":0}]
[]
[13,"\"Teco\" or equally approved hurricane clips","No",1468,null,{"$f":"D567*E567","v":0}]
[]
[14,"2.5mm Diameter galvanised wire tie 400mm girth wrapped around rafter and purlin with ends tied together","No",1468,null,{"$f":"D569*E569","v":0}]
[]
[null,"DOORS ETC"]
[]
[null,"Flush panel solid doors with \"Meranti\" or equally approved veneer to both sides hung to steel frames"]
[]
[15,"40mm Thick door size 900 x 2100mm high","No",16,null,{"$f":"D575*E575","v":0}]
[]
[null,"Flush panel hollow-core door with \"Meranti\" or equally approved veneer to both sides hung to steel frames"]
[]
[16,"40mm Thick door size 900 x 2100mm high","No",12,null,{"$f":"D579*E579","v":0}]
[]
["Bill No. 7","Carried to Summary",{"$nulls":3},{"$f":"SUM(F533:F580)","v":0}]
[]
[null,"BILL NO. 8"]
[]
[null,"CEILINGS, PARTITIONS AND ACCESS FLOORING"]
[]
[null,"(CPAP WORK GROUP NO. 129 UNLESS OTHERWISE STATED)"]
[]
[null,"Key:                          Location Description  \nA                               Block A (Library) \nB                               Block B (3 classroom) \nC                               Block C (4 classroom) \nD                               Block D (3 classroom) \nE                               Block E (Female ablution) \nF                               Block F (Staff ablution) \nG                               Block G (Male ablution) \nH                               Block H (Old ablution) \nI                                 Block I (Park home) \nJ                                External works \nK                               General"]
[]
[null,"Tenderers are referred to the Model Preambles for All Trades as published by the Association of South African Quantity Surveyors (Tel. 011-315 4140) and the Architectural, Structural and Electrical Information before pricing this Bill of Quantities"]
[]
[null,"SUPPLEMENTARY PREAMBLES"]
[]
[null,"Proprietary items or materials"]
[]
[null,"Proprietary items or materials where specified are to be of the brand specified or other approved by the Representative / Agent"]
[]
[null,"Fixing"]
[]
[null,"Items described as 'nailed' shall be deemed to be fixed with hardened steel nails or pins, or to be shot-pinned, to brickwork or concrete"]
[]
[null,"Items described as 'plugged' shall be deemed to include screwing to fibre, plastic or metal plugs at not exceeding 500mm centres, and where described as 'bolted', the bolts have been given elsewhere"]
[]
[null,"Ceilings"]
[]
[null,"Unless otherwise described ceilings shall be deemed to be horizontal"]
[]
[null,"Bulkheads"]
[]
[null,"Bulkheads are defined as those portions of ceilings which are stepped down from the general ceiling level in a particular room or area and which generally occur along the perimeter. Their purpose is either to conceal services or to create architectural features"]
[]
[null,"Bulkheads have only been described as such where they conform to the above definition and where the horizontal or vertical dimensions do not exceed 900mm. Where these dimensions are more than 900mm such portions of ceilings have been included in the appropriate general items of ceilings"]
[]
[null,"Unless otherwise described bulkheads shall be deemed to be horizontal along the length"]
[]
[null,"Steel components"]
[]
[null,"All steel components for ceilings, partitions, etc. are to be galvanised in accordance with SANS 121"]
[]
[null,"NAILED UP CEILINGS"]
[]
[null,"9,5mm \"Rhino\" gypsum plasterboard"]
[]
[1,"Ceilings  including 38 x 38mm  sawn  softwood  brandering at 600mm centres with cross brandering at joints, ends of sheets and at light fittings, etc","m2",660,null,{"$f":"D625*E625","v":0}]
[]
[2,"Extra  over  ceiling  for  800 x 800mm trap door of wrought softwood  rebated  framing  with  one sawn softwood cross brander covered with ceiling board and fitted flush in opening","No",12,null,{"$f":"D627*E627","v":0}]
[]
[null,"\"Rhino\" gypsum plasterboard cornices"]
[]
[3,"75mm Coved cornices","m",308,null,{"$f":"D631*E631","v":0}]
[]
[null,"Sundries"]
[]
[null,"\"Isotherm\" or equally approved insulation"]
[]
[4,"100mm Insulation closely fitted and laid on top of brandering between roof timbers etc","m2",660,null,{"$f":"D637*E637","v":0}]
[]
["Bill No. 8","Carried to Summary",{"$nulls":3},{"$f":"SUM(F613:F638)","v":0}]
[]
[null,"BILL NO. 9"]
[]
[null,"FLOOR COVERINGS, PLASTIC LININGS, ETC"]
[]
[null,"(CPAP WORK GROUP NO. 130 UNLESS OTHERWISE STATED)"]
[]
[null,"Key:                          Location Description  \nA                               Block A (Library) \nB                               Block B (3 classroom) \nC                               Block C (4 classroom) \nD                               Block D (3 classroom) \nE                               Block E (Female ablution) \nF                               Block F (Staff ablution) \nG                               Block G (Male ablution) \nH                               Block H (Old ablution) \nI                                 Block I (Park home) \nJ                                External works \nK                               General"]
[]
[null,"Tenderers are referred to the Model Preambles for All Trades as published by the Association of South African Quantity Surveyors (Tel. 011-315 4140) and the Architectural, Structural and Electrical Information before pricing this Bill of Quantities"]
[]
[null,"SUPPLEMENTARY PREAMBLES"]
[]
[null,"Proprietary items or materials"]
[]
[null,"Proprietary items or materials where specified are to be of the brand specified or other approved by the Representative / Agent"]
[]
[null,"Screed deviations are not to exceed 5mm over 3000mm"]
[]
[null,"Thoroughly clean down with SANS 10183:1-4 compliant diluted natural detergent and thoroughly rinse, allow to dry and apply 3 coats water based floor dressing compliant with SANS 1042. "]
[]
[null,"Remove all contaminates, clean down and apply TAL screed master, prime with TAL Floor Primer using pump method all by TAL contractor in accordance with the manufacturer's instructions"]
[]
[null,"Using \"Floorworx Self-Leveller\" when required, including all cutting, waste, and sealing with matt or gloss sealer."]
[]
[null,"FLOOR COVERINGS"]
[]
[null,"300 x 300 x 2.5mm Thick \"Floorflex\" or equally approved semi-flexible vinyl tiles manufactured in accordance with SANS 581 and laid in FloorworX No. 62 acrylic adhesive spread with a trowel fitted with an A2 notched blade at a rate of between 5.5m2 and 6.5m2 per litre on a previously prepared Class 1 sub floor in accordance with SANS 10070, using FloorworX Self Leveller when required, including all cutting and waste. The flooring must be rolled in both directions with an articulated 68kg three-sectional roller immediately after it has been laid into the adhesive"]
[]
[1,"On floors","m2",464,null,{"$f":"D669*E669","v":0}]
[]
[null,"SKIRTINGS, NOSINGS, ETC"]
[]
[null,"\"Marley \" or equally approved "]
[]
[2,"12mm anodised aluminium edge strip fixed to concrete","m",174,null,{"$f":"D675*E675","v":0}]
[]
[null,"POLISH, SEALERS, ETC"]
[]
[null,"\"Floorworx\" or equally approved "]
[]
[3,"Strip floor using \"Floorworx Stripper\", including scrubbing using a diluted solution of \"Floorworx Rinse\" and seal with three coats of \"Floorworx Silk Matt\" or \"Gloss Sealer\"","m2",464,null,{"$f":"D681*E681","v":0}]
[]
["Bill No. 9","Carried to Summary",{"$nulls":3},{"$f":"SUM(F666:F682)","v":0}]
[]
[null,"BILL NO. 10"]
[]
[null,"IRONMONGERY"]
[]
[null,"(CPAP WORK GROUP NO. 132 UNLESS OTHERWISE STATED)"]
[]
[null,"Key:                          Location Description  \nA                               Block A (Library) \nB                               Block B (3 classroom) \nC                               Block C (4 classroom) \nD                               Block D (3 classroom) \nE                               Block E (Female ablution) \nF                               Block F (Staff ablution) \nG                               Block G (Male ablution) \nH                               Block H (Old ablution) \nI                                 Block I (Park home) \nJ                                External works \nK                               General"]
[]
[null,"Tenderers are referred to the Model Preambles for All Trades as published by the Association of South African Quantity Surveyors (Tel. 011-315 4140) and the Architectural, Structural and Electrical Information before pricing this Bill of Quantities"]
[]
[null,"SUPPLEMENTARY PREAMBLES"]
[]
[null,"Proprietary items or materials"]
[]
[null,"Proprietary items or materials where specified are to be of the brand specified or other approved by the Representative / Agent"]
[]
[null,"Finishes to ironmongery"]
[]
[null,"Where applicable finishes to ironmongery are indicated by suffixes in accordance with the following list: BS Satin bronze lacquered CH Chromium plated SC Satin chromium plated SE Silver enamelled GE Grey enamelled AS Anodised silver AB Anodised bronze AG Anodised gold ABL Anodised black PB Polished brass PL Polished and lacquered PT Epoxy coated SD Sanded"]
[]
[null,"HINGES, BOLTS, ETC"]
[]
[null,"\"Union\" or equally approved "]
[]
[1,"100mm Brass hinge","No",84,null,{"$f":"D709*E709","v":0}]
[]
[null,"LOCKS"]
[]
[null,"\"Union\" or equally approved "]
[]
[2,"\"2277-103 SS\" Three lever lockset","No",28,null,{"$f":"D715*E715","v":0}]
[]
[null,"\"Viro\" or equally approved "]
[]
[3,"30mm Padlock","No",28,null,{"$f":"D719*E719","v":0}]
[]
[null,"SUNDRIES"]
[]
[null,"\"Union\" or equally approved "]
[]
[4,"\"CZ8731SC\" door stop","No",16,null,{"$f":"D725*E725","v":0}]
[]
[null,"PINNING BOARDS, WRITING BOARDS, PROJECTION SCREENS, ETC"]
[]
[5,"Combi board with and including anodised aluminium frame, size 2000 x 1200mm high plugged","No",2,null,{"$f":"D729*E729","v":0}]
[]
[6,"2400 x 1200mm High, wall mounted aluminium framed pinning board ","No",12,null,{"$f":"D731*E731","v":0}]
[]
[7,"2420 x 1220mm fixed projection white board (non reflective) aluminium framed, magnetic surface (centre board) complete with (x2) 1210 x 1220mm swing leaf aluminium framed magnetic chalk boards (without any lines or graphics, etc) with heavy duty hinges and 2250mm one complete aluminium pen tray to the centre board ","No",12,null,{"$f":"D733*E733","v":0}]
[]
[8,"Magnetic starter pack (1x full complete set) consisting of: 4 x White board markers (red, green, black, blue) 1 x Cleaning cloth1x Magnetic eraser1x Cleaning fluid 250ml1x Moulded magnets d day   ","No",12,null,{"$f":"D735*E735","v":0}]
[]
["Bill No. 10","Carried to Summary",{"$nulls":3},{"$f":"SUM(F703:F736)","v":0}]
[]
[null,"BILL NO. 11"]
[]
[null,"METALWORK"]
[]
[null,"(CPAP WORK GROUP NO. 136 UNLESS OTHERWISE STATED)"]
[]
[null,"Key:                          Location Description  \nA                               Block A (Library) \nB                               Block B (3 classroom) \nC                               Block C (4 classroom) \nD                               Block D (3 classroom) \nE                               Block E (Female ablution) \nF                               Block F (Staff ablution) \nG                               Block G (Male ablution) \nH                               Block H (Old ablution) \nI                                 Block I (Park home) \nJ                                External works \nK                               General"]
[]
[null,"Tenderers are referred to the Model Preambles for All Trades as published by the Association of South African Quantity Surveyors (Tel. 011-315 4140) and the Architectural, Structural and Electrical Information before pricing this Bill of Quantities"]
[]
[null,"SUPPLEMENTARY PREAMBLES"]
[]
[null,"Proprietary items or materials"]
[]
[null,"Proprietary items or materials where specified are to be of the brand specified or other approved by the Representative / Agent"]
[]
[null,"Descriptions of bolts, anchors, etc.:"]
[]
[null,"Descriptions of bolts shall be deemed to include nuts and washers"]
[]
[null,"Descriptions of expansion anchors and bolts and chemical anchors and bolts shall be deemed to include nuts, washers and mortices in brickwork or concrete"]
[]
[null,"Items described as 'holed for bolt(s)' shall be deemed to exclude the bolts unless otherwise described"]
[]
[null,"Items described as 'plugged' shall be deemed to include screwing to fibre, plastic or metal plugs at not exceeding 600mm centres"]
[]
[null,"Hot dipped galvanising:"]
[]
[null,"The mass of hot dip galvanised steelwork has been calculated on the mass before galvanising and no allowance has been made for the additional mass of galvanising for which allowance must be made in pricing"]
[]
[null,"Unless otherwise stated, all steelwork described as galvanised shall be deemed to include for 'hot-dip' galvanising in accordance with the latest SANS standards"]
[]
[null,"WELDED GALVANISED SCREENS, GATES, ETC"]
[]
[null,"Screens and gates"]
[]
[1,"Purpose made single hot dipped galvanised mild steel gate, 1100mm x 2125mm formed of 40 x 60 x 3mm hollow sectioned frames and midrail, filled in with 12mm solid square vertical bars at 110mm centres welded to frame and fitted with 2no. Pin type gate hinges welded to frame and pad lock plates welded to gate and plugged to walls with and including expansion joints","No",16,null,{"$f":"D775*E775","v":0}]
[]
[null,"GALVANISED PRESSED STEEL DOOR FRAMES"]
[]
[null,"NOTE:  All door frames to be fitted with one and a half pair chromium plated on steel, brass butts with double nylon washers for each door leaf unless otherwise described and chromium plated striking plates"]
[]
[null,"1,2mm Double rebated frames suitable for half brick walls"]
[]
[2,"Frame for door 900 x 2100mm high ","No",12,null,{"$f":"D783*E783","v":0}]
[]
[null,"1,2mm Double rebated frames suitable for one brick walls"]
[]
[3,"Frame for door 900 x 2100mm high ","No",16,null,{"$f":"D787*E787","v":0}]
[]
[null,"GALVANISED STEEL POSTS "]
[]
[null,"Hot dipped galvanised mild steel post "]
[]
[4,"73mm diameter x 4mm thick x approximately 2900mm high hollow section hot dipped galvanised mild steel posts with 200 200 6mm U-shaped beam support four times holed on both sides welded on top end and 200 x 200 12mm thick base plate with four times holed and plugged to concrete with M12 Chemical anchors and plugged to concrete with M12 Chemical anchors (Bolts elsewhere measured)","No",144,null,{"$f":"D793*E793","v":0}]
[]
[5,"M12 x 100mm Chemical anchor bolts","No",576,null,{"$f":"D795*E795","v":0}]
[]
[6,"M12 x 100mm bolts","No",720,null,{"$f":"D797*E797","v":0}]
[]
[null,"PROVISIONAL SUMS "]
[]
[7,"Provide an amount of R120,000.00 (One Hundred and Twenty Thousand Rand) for the supply and install of one (1)  smart interactive board (screen) to be installed in the team teaching or general multi-purpose classroom or standard classroom ","Item",1,{"v":120000,"d":"120,000.00"},{"$f":"D801*E801","v":{"v":120000,"d":"R120,000.00"}}]
[]
[8,"Allow for profit and general attendance ","%",null,{"v":120000,"d":"120,000.00"},{"$f":"D803*E803","v":0}]
[]
[9,"Provide an amount of R10,000.00 (Ten Thousand Rand) for training to be given on the functioning of the smart interactive screen ","Item",1,{"v":10000,"d":"10,000.00"},{"$f":"D805*E805","v":{"v":10000,"d":"R10,000.00"}}]
[]
[10,"Allow for profit and general attendance ","%",null,{"v":10000,"d":"10,000.00"},{"$f":"D807*E807","v":0}]
[]
[null,"Note: The contractor is to check on site measurements before placing of order. "]
[]
[11,"Push-up hot dip galvanised steel roller shutter door to suit opening size 2,500 x 1,115mm high, with overhead box, with 0,8mm thick slats, 75mm wide side guides and two barrel bolts including extruded aluminium T-bar formed of 40 x 40mm angle iron, with rubber seal. ","No",1,null,{"$f":"D811*E811","v":0}]
[]
["Bill No. 11","Carried to Summary",{"$nulls":3},{"$f":"SUM(F769:F812)","v":{"v":130000,"d":"R130,000.00"}}]
[]
[null,"BILL NO. 12"]
[]
[null,"PLASTERING"]
[]
[null,"(CPAP WORK GROUP NO. 142 UNLESS OTHERWISE STATED)"]
[]
[null,"Key:                          Location Description  \nA                               Block A (Library) \nB                               Block B (3 classroom) \nC                               Block C (4 classroom) \nD                               Block D (3 classroom) \nE                               Block E (Female ablution) \nF                               Block F (Staff ablution) \nG                               Block G (Male ablution) \nH                               Block H (Old ablution) \nI                                 Block I (Park home) \nJ                                External works \nK                               General"]
[]
[null,"Tenderers are referred to the Model Preambles for All Trades as published by the Association of South African Quantity Surveyors (Tel. 011-315 4140) and the Architectural, Structural and Electrical Information before pricing this Bill of Quantities"]
[]
[null,"SUPPLEMENTARY PREAMBLES"]
[]
[null,"Proprietary items or materials"]
[]
[null,"Proprietary items or materials where specified are to be of the brand specified or other approved by the Representative / Agent"]
[]
[null,"Method :"]
[]
[null,"The method to be used shall be either the monolithic method or the bonded method"]
[]
[null,"Preparation :"]
[]
[null,"For granolithic applied monolithically, the concrete floor shall be swept clean after bleeding of the concrete has ceased and the slab has begun to stiffen; any remaining bleed water shall be removed and the granolithic applied immediately thereafter. For granolithic to be bonded to the floor slab after it has hardened, the slab surface shall be hacked (preferably by mechanical means) until all laitance, dirt, oil, etc. is dislodged and swept clean of all loose matter. The slab shall then be wetted and kept damp for at least six hours before applying the granolithic"]
[]
[null,"Mix :"]
[]
[null,"Granolithic shall attain a compressive strength of at least 41MPa. The coarse aggregate shall comply with SANS 1083 and shall generally be capable of passing a 10mm mesh sieve. Where the thickness of the granolithic exceeds 25mm, the size of the coarse aggregate shall be increased to the maximum size compatible with the thickness of the granolithic"]
[]
[null,"Panels :"]
[]
[null,"Granolithic shall be laid in panels not exceeding 14m\\'b2 for monolithic finishes, not exceeding 9,5m\\'b2 for bonded finishes and not exceeding 6m\\'b2 for all external granolithic. Wherever possible, panels shall be square but at no time should the length of the panel exceed 1,5 times its width"]
[]
[null,"Where possible joints between panels shall be positioned over joints in the floor slab and shall be at least 3mm wide through the full thickness of the finish, separated by strips of wood or fibreboard and finished with V-joints"]
[]
[null,"Laying :"]
[]
[null,"Monolithic granolithic shall be applied to the partially set slab and thoroughly compacted and lightly wood floated to the required levels"]
[]
[null,"Bonded granolithic shall be applied to the slab after applying a 1:1 sand-and-cement slurry brushed over the surface and allowed to partially set before applying the granolithic. The granolithic shall be thoroughly compacted and lightly wood floated to the required levels"]
[]
[null,"After wood floating, the monolithic and bonded granolithic shall remain undisturbed until bleeding has ceased and the surface has stiffened. Any remaining bleed water and laitance shall then be removed and the surface steel trowelled or power floated"]
[]
[null,"Curing, seasoning and protection :"]
[]
[null,"Granolithic shall be covered with clean hessian with waterproof building foil over and kept wet for at least seven days after laying"]
[]
[null,"Colour :"]
[]
[null,"Coloured granolithic shall be tinted with an approved colouring pigment mixed into a true and even colour"]
[]
[null,"SCREEDS"]
[]
[null,"Screeds power floated on concrete"]
[]
[1,"25mm Thick on floors and landings","m2",50,null,{"$f":"D869*E869","v":0}]
[]
[null,"Screeds wood floated on concrete"]
[]
[2,"25mm Thick on floors and landings","m2",464,null,{"$f":"D873*E873","v":0}]
[]
["Bill No. 12","Carried to Summary",{"$nulls":3},{"$f":"SUM(F861:F874)","v":0}]
[]
[null,"BILL NO. 13"]
[]
[null,"PLUMBING AND DRAINAGE (PROVISIONAL)"]
[]
[null,"(CPAP WORK GROUP NO. 148 UNLESS OTHERWISE STATED)"]
[]
[null,"Key:                          Location Description  \nA                               Block A (Library) \nB                               Block B (3 classroom) \nC                               Block C (4 classroom) \nD                               Block D (3 classroom) \nE                               Block E (Female ablution) \nF                               Block F (Staff ablution) \nG                               Block G (Male ablution) \nH                               Block H (Old ablution) \nI                                 Block I (Park home) \nJ                                External works \nK                               General"]
[]
[null,"Tenderers are referred to the Model Preambles for All Trades as published by the Association of South African Quantity Surveyors (Tel. 011-315 4140) and the Architectural, Structural and Electrical Information before pricing this Bill of Quantities"]
[]
[null,"SUPPLEMENTARY PREAMBLES"]
[]
[null,"Proprietary items or materials"]
[]
[null,"Proprietary items or materials where specified are to be of the brand specified or other approved by the Representative / Agent"]
[]
[null,"Wire gratings:"]
[]
[null,"Descriptions of gutter outlets etc. shall be deemed to include wire balloon gratings"]
[]
[null,"Stormwater channels:"]
[]
[null,"Descriptions of channels shall be deemed to include necessary excavation, surface preparation, compaction, etc., and disposal of surplus material on site :"]
[]
[null,"French drains:"]
[]
[null,"Descriptions of French drains shall be deemed to include excavation, stone filling graded from 300mm diameter at bottom to 75mm diameter at top, geofabric filter blanket over stone, 300mm earth filling over and disposal of surplus material on site :"]
[]
[null,"Septic tanks:"]
[]
[null,"Descriptions of proprietary type septic tanks shall be deemed to include excavation, bedding and jointing, concrete base slabs, jointing to drains and backfilling, compaction, etc. all in accordance with the manufacturer's instructions and disposal of surplus material on site"]
[]
[null,"Stainless steel basins, sinks, wash troughs, urinals, etc:"]
[]
[null,"Stainless steel for economy basins, domestic sinks and worktops shall be Type 430 (17/0)  Stainless steel for urinals, basins, quality sinks, wash troughs, institutional equipment, etc. shall be Type 304 (18/8)  Stainless steel for laboratory sinks, photographic equipment, etc. shall be Type 316 (18/8)  Units shall have standard aprons on all exposed edges and tiling keys against walls where applicable"]
[]
[null,"Sealing of edges:"]
[]
[null,"Outer edges of sinks, basins, baths, urinals, etc. are to be sealed against adjacent surfaces with approved silicone"]
[]
[null,"uPVC pipes and fittings:"]
[]
[null,"Sewer and drainage pipes and fittings shall be jointed and sealed with butyl rubber rings. Soil, waste and vent pipes and fittings shall be solvent weld jointed or sealed with butyl rubber rings"]
[]
[null,"uPVC pressure pipes and fittings:"]
[]
[null,"Pipes of 50mm diameter and smaller shall be plain ended with solvent welded uPVC loose sockets and fittings. Pipes of 63mm diameter and greater shall have sockets and spigots with push-in type integral rubber ring joints.  Bends shall be uPVC and all other fittings shall be cast iron, all with similar push-in type joints"]
[]
[null,"High density polyethylene (HDPe) pipes and fittings:"]
[]
[null,"Pipes shall be type IV and of the class specified with Plasson or Alprene compression fittings"]
[]
[null,"Polycop polypropylene pipes:"]
[]
[null,"Polypropylene pipes 54mm diameter and smaller shall be seamless copper coloured Class 16 pipes jointed with Fast-fuse heat welded thermoplastic or where so described Polylock compression fittings  Pipes shall be firmly fixed to walls, etc. with coloured nylon snap-in pipe clips with provision for accommodating thermal movement and jointed and fixed strictly in accordance with the manufacturer's instructions"]
[]
[null,"Copper pipes:"]
[]
[null,"Pipes shall be hard drawn and half-hard Maksal pipes of the class described.  Class 0 (thin walled hard drawn) pipes shall not be bent.  Class 1 (thin walled half-hard), Class 2 (half-hard) and Class 3 (heavy walled half-hard) pipes shall only be bent with benders with inner and outer formers.  Fittings to copper waste, vent and anti-syphon pipes, capillary solder fittings and compression fittings shall be 'Cobra Watertech' or equal approved type.  Capillary solder fittings shall comply with ISO 2016"]
[]
[null,"Copper pipes are to be installed in accordance with the latest revision of the Code of Practice for Copper Plumbing soldering techniques. Flux, solder, etc. to be strictly in accordance with the manufacturer's requirements with special attention to copper flux composition"]
[]
[null,"Reducing fittings:"]
[]
[null,"Where fittings have reducing ends or branches they are described as 'reducing' and only the largest end or branch size is given. Should the contractor wish to use other fittings and bushes or reducers he may do so on the understanding that no claim in this regard will be entertained"]
[]
[null,"Fixing of pipes:"]
[]
[null,"Unless specifically otherwise stated, descriptions of pipes shall be deemed to include fixing to walls, etc., casting in, building in or suspending not exceeding 1m below suspension level"]
[]
[null,"Paper wrapping to pipes:"]
[]
[null,"Pipes chased into brickwork must be wrapped with two layers of stout brown paper tied with wire.  Rates are to include for wrapping around joints and fittings"]
[]
[null,"Disinfection of water pipework:"]
[]
[null,"Water pipework is to be disinfected at completion in accordance with SANS"]
[]
[null,"Densyl petrolatum anti-corrosion tape as manufactured by Denso SA (Pty) Ltd:"]
[]
[null,"Pipes to be taped shall be coated with the appropriate primer and the tape shall be applied in the appropriate widths and with 25% overlaps. Couplings and fittings to pipes shall be taped in strict accordance with the manufacturer's instructions including mastic, tape, Layflat sheeting, securing of same, etc"]
[]
[null,"Prices for wrapping of pipes shall include for all work as described to couplings in the length"]
[]
[null,"Laying, backfilling, bedding, etc. of pipes:"]
[]
[null,"Pipes shall be laid and bedded in accordance with manufacturers' instructions and trenches shall be carefully backfilled"]
[]
[null,"Where no manufacturers' instructions exist, pipes shall be laid in accordance with SANS"]
[]
[null,"General:"]
[]
[null,"Descriptions of cast iron roof outlets shall be deemed to include joints to pipes and casting into concrete and shall include adaptors for joints to PVC pipes, etc.).  Descriptions of overflow pipes where measured in number, shall be deemed to include joints to cisterns and splay cut ends"]
[]
[null,"Descriptions of pipes laid in and including trenches and of inspection chambers, catchpits, etc. shall be deemed to include excavation, bedding, backfilling, compaction to a minimum of 98% Mod AASHTO density and disposal of surplus material off site"]
[]
[null,"Descriptions of service pipes and flexible connecting pipes shall be deemed to include connections to taps, cisterns, etc., steel pipes, copper pipes, etc"]
[]
[null,"Descriptions of WC pans, slop hoppers, etc. shall be deemed to include for joints to soil pipes (pan connectors are separately measured)"]
[]
[null,"As-built drawings:"]
[]
[null,"The contractor shall prepare an updated set of as-built drawings.  At completion of the contract the contractor shall hand these drawings to the principal agent for reproducing onto the originals for handing over to the employer (provision for allowance of as-built drawings elsewhere)"]
[]
[null,"RAINWATER DISPOSAL"]
[]
[null,"0.8mm Seamless aluminium"]
[]
[1,"150 x 150mm Box gutter aluminium white baked enamel finish fixed with concealed brackets ","m",430,null,{"$f":"D985*E985","v":0}]
[]
[2,"Extra over eaves gutter for stopped end","No",44,null,{"$f":"D987*E987","v":0}]
[]
[3,"Extra over eaves gutter for angle","No",44,null,{"$f":"D989*E989","v":0}]
[]
[4,"Extra over eaves gutter for outlet for 150 x 75mm pipe","No",44,null,{"$f":"D991*E991","v":0}]
[]
[5,"Extra over eaves gutter for drop box suitable for 150 x 150mm box gutter ","No",32,null,{"$f":"D993*E993","v":0}]
[]
[6,"125 x 75mm Rainwater aluminium downpipes with white baked enamel finish ","m",118,null,{"$f":"D995*E995","v":0}]
[]
[7,"Extra over rainwater pipe for bend","No",88,null,{"$f":"D997*E997","v":0}]
[]
[8,"Extra over rainwater pipe for shoe","No",44,null,{"$f":"D999*E999","v":0}]
[]
[null,"SANITARY FITTINGS"]
[]
[null,"\"Atlas\" or equally approved "]
[]
[9,"\"Christy-382\" Wash hand basin (colour granite) code 085202 size 387 x 395mm wide with two tap holes including 40mm waste union","No",8,null,{"$f":"D1005*E1005","v":0}]
[]
[10,"\"VIP 200\" pedestal with seat and lid (colour granite) code 101235 size 387 x 518mm high with foot piece and VIP 200 inlet funnel - 224, inserted in concrete cover slab of pit","No",16,null,{"$f":"D1007*E1007","v":0}]
[]
[null,"TRAPS ETC"]
[]
[null,"\"Cobra Watertech\" or equally approved "]
[]
[11,"32mm 340 CP bottle trap including C-342/1 with tail pipe, C-342/2 capnut and C-342/3 wall flange","No",8,null,{"$f":"D1013*E1013","v":0}]
[]
[null,"TAPS, VALVES, ETC"]
[]
[null,"\"Cobra\" or equally approved "]
[]
[12,"\"Code - 401\" or equally approved CP Basin set comprising one pair 15mm \"Star\" pillar taps including basin waste plug (Code - 301) or equally approved with chain, stay and backnut","No",8,null,{"$f":"D1019*E1019","v":0}]
[]
[null,"WATER SUPPLIES"]
[]
[null,"Class 1 copper pipes"]
[]
[13,"15mm Pipes","m",40,null,{"$f":"D1025*E1025","v":0}]
[]
[14,"22mm Pipes","m",24,null,{"$f":"D1027*E1027","v":0}]
[]
[15,"15mm Pipes chased into brick walls","m",20,null,{"$f":"D1029*E1029","v":0}]
[]
[16,"22mm Pipes chased into brick walls","m",16,null,{"$f":"D1031*E1031","v":0}]
[]
[null,"Extra over class 1 copper pipes for capillary fittings"]
[]
[17,"15mm Fittings","No",32,null,{"$f":"D1035*E1035","v":0}]
[]
[18,"22mm Fittings","No",16,null,{"$f":"D1037*E1037","v":0}]
[]
[null,"Copper overflow and service pipes"]
[]
[19,"15mm Bent service pipe average 450mm girth and joint to copper and fittings","No",48,null,{"$f":"D1041*E1041","v":0}]
[]
["Bill No. 13","Carried to Summary",{"$nulls":3},{"$f":"SUM(F980:F1042)","v":0}]
[]
[null,"BILL NO. 14"]
[]
[null,"GLAZING"]
[]
[null,"(CPAP WORK GROUP NO. 150 UNLESS OTHERWISE STATED) "]
[]
[null,"Key:                          Location Description  \nA                               Block A (Library) \nB                               Block B (3 classroom) \nC                               Block C (4 classroom) \nD                               Block D (3 classroom) \nE                               Block E (Female ablution) \nF                               Block F (Staff ablution) \nG                               Block G (Male ablution) \nH                               Block H (Old ablution) \nI                                 Block I (Park home) \nJ                                External works \nK                               General"]
[]
[null,"Tenderers are referred to the Model Preambles for All Trades as published by the Association of South African Quantity Surveyors (Tel. 011-315 4140) and the Architectural, Structural and Electrical Information before pricing this Bill of Quantities"]
[]
[null,"SUPPLEMENTARY PREAMBLES"]
[]
[null,"Proprietary items or materials"]
[]
[null,"Proprietary items or materials where specified are to be of the brand specified or other approved by the Representative / Agent"]
[]
[null,"Float glass "]
[]
[null,"The term 'float glass' is used for monolithic annealed glass "]
[]
[null,"Laminated glass "]
[]
[null,"Laminated glass to have polyvinyl butyral (PVB) interlayer(s) "]
[]
[null,"GLAZING TO STEEL WITH PUTTY"]
[]
[null,"Note: Tenderers are referred to architect's drawings annexed to these bill of quantities. Glazing to conform with \"The South African Glass & Glazing Association (SAGGA)\" and shall comply with the National Building Regulations and Building Standards Act 103 of 1977 and SANS 10137 Code of Practice for the Installation of Glazing in Buildings"]
[]
[null,"6mm Clear toughened safety glass puttied in with steel window putty as per SANS 10400:N"]
[]
[1,"Panes exceeding 0,5m2 and not exceeding 2m2","m2",60,null,{"$f":"D1075*E1075","v":0}]
[]
[null,"Glazing Certificate"]
[]
[2,"Issue of AAAMSA Glass & Glazing Certificate by registered and authorised entity","Item",7,null,{"$f":"D1079*E1079","v":0}]
[]
["Bill No. 14","Carried to Summary",{"$nulls":3},{"$f":"SUM(F1065:F1080)","v":0}]
[]
[null,"BILL NO. 15"]
[]
[null,"PAINTWORK"]
[]
[null,"(CPAP WORK GROUP NO. 152 UNLESS OTHERWISE STATED)"]
[]
[null,"Key:                          Location Description  \nA                               Block A (Library) \nB                               Block B (3 classroom) \nC                               Block C (4 classroom) \nD                               Block D (3 classroom) \nE                               Block E (Female ablution) \nF                               Block F (Staff ablution) \nG                               Block G (Male ablution) \nH                               Block H (Old ablution) \nI                                 Block I (Park home) \nJ                                External works \nK                               General"]
[]
[null,"Tenderers are referred to the Model Preambles for All Trades as published by the Association of South African Quantity Surveyors (Tel. 011-315 4140) and the Architectural, Structural and Electrical Information before pricing this Bill of Quantities"]
[]
[null,"SUPPLEMENTARY PREAMBLES"]
[]
[null,"Proprietary items or materials"]
[]
[null,"Proprietary items or materials where specified are to be of the brand specified or other approved by the Representative / Agent"]
[]
[null,"PAINTWORK ETC TO PREVIOUSLY PAINTED WORK"]
[]
[null,"Previously painted plastered surfaces"]
[]
[null,"Surfaces shall be thoroughly washed down and allowed to dry completely before any paint is applied. Blistered or peeling paint shall be completely removed and cracks shall be opened, filled with a suitable filler and finished smooth"]
[]
[null,"Previously painted metal surfaces "]
[]
[null,"Surfaces shall be thoroughly rubbed and cleaned down.  Blistered or peeling paint shall be completely removed down to bare metal"]
[]
[null,"Previously painted wood surfaces"]
[]
[null,"Surfaces shall be thoroughly cleaned down.  Blistered or peeling paint shall be completely removed and cracks and crevices shall be primed, filled with suitable filler and finished smooth"]
[]
[null,"COLOURS "]
[]
[null,"Colours, etc."]
[]
[null,"Unless otherwise described all paintwork shall be deemed to have a colour value in excess of 7 on the Munsell system in accordance with SANS 1091"]
[]
[null,"PREPARATORY WORK TO EXISTING WORK"]
[]
[null,"Previously painted plastered surfaces"]
[]
[null,"Surfaces shall be thoroughly washed down and allowed to dry completely before any paint is applied. Blistered or peeling paint shall be completely removed and cracks shall be opened, filled with a suitable filler and finished smooth"]
[]
[null,"PAINTWORK ETC TO PREVIOUSLY PAINTED WORK"]
[]
[null,"ON FLOATED PLASTER"]
[]
[null,"Prepare surfaces and remove all loose material, apply one coat \"Plascon or equally aproved Professional Plaster Prime (PP700)\" thinned 20% and two coats \"Plascon Egg Shell Enamel (PSB700)\" paint"]
[]
[1,"On internal walls","m2",1300,null,{"$f":"D1131*E1131","v":0}]
[]
[2,"On external walls","m2",1197,null,{"$f":"D1133*E1133","v":0}]
[]
[null,"PAINTWORK ETC TO NEW WORK"]
[]
[null,"ON PLASTERBOARD"]
[]
[null,"Prepare surfaces and remove all loose material, apply one coat \"Plascon Merit Plaster Primer or equally aproved\" and two coats \"Plascon Velvaglo Polyurethane Enamel or equally aproved\" paint"]
[]
[3,"On ceilings and cornices","m2",660,null,{"$f":"D1141*E1141","v":0}]
[]
[null,"ON WOOD"]
[]
[null,"Spot, sand down and prepare wood surfaces and apply three coats \"Plascon Woodcare Woodcoat Polyurethane or equally aproved\" matt clear varnish"]
[]
[4,"On doors","m2",106,null,{"$f":"D1147*E1147","v":0}]
[]
[null,"Prepare surfaces and remove all loose material, apply one coat \"Plascon Merit Plaster Primer or equally aproved\" and two coats \"Plascon Velvaglo Polyurethane Enamel or equally aproved\" paint"]
[]
[5,"On trusses","m2",37,null,{"$f":"D1151*E1151","v":0}]
[]
[null,"ON METAL"]
[]
[null,"Hot dipped galvanised, primed with approved 2 coats \"Plascon Metal Galvanised Iron Primer - Code: GIP 1) steel alkyline primer and allow drying between the coats and 3 coats (Plascon Arcylic Paint  Wall and All Code: TWA Tint base) or equally approved. colour to Architect"]
[]
[6,"On gates, grilles, burglar screens, balustrades, etc. (both sides measured over the full flat area) ","m2",37,null,{"$f":"D1157*E1157","v":0}]
[]
[7,"On door frames etc","m2",14,null,{"$f":"D1159*E1159","v":0}]
[]
[8,"Window frames, etc,","m2",108,null,{"$f":"D1161*E1161","v":0}]
[]
["Bill No. 15","Carried to Summary",{"$nulls":3},{"$f":"SUM(F1125:F1162)","v":0}]
[]
[null,"BILL NO. 16"]
[]
[null,"EXTERNAL WORK"]
[]
[null,"Key:                          Location Description  \nA                               Block A (Library) \nB                               Block B (3 classroom) \nC                               Block C (4 classroom) \nD                               Block D (3 classroom) \nE                               Block E (Female ablution) \nF                               Block F (Staff ablution) \nG                               Block G (Male ablution) \nH                               Block H (Old ablution) \nI                                 Block I (Park home) \nJ                                External works \nK                               General"]
[]
[null,"Tenderers are referred to the Model Preambles for All Trades as published by the Association of South African Quantity Surveyors (Tel. 011-315 4140) and the Architectural, Structural and Electrical Information before pricing this Bill of Quantities"]
[]
[null,"The tenderer is referred to the relevant clauses in the ASAQS Model Trades Preambles 2008 which are incorporated at the back of these Bills of Quantities"]
[]
[null,"Explosives :"]
[]
[null,"No explosives whatsoever may be used for demolition purposes unless otherwise stated"]
[]
[null,"General :"]
[]
[null,"The contractor shall carry out the whole of the works with as little mess and noise as possible and with minimum disturbance to adjoining classroom blocks and their students. He shall provide proper protection and provide, erect and remove when directed, any temporary tarpaulins that may be necessary during the progress of the works, all to the satisfaction of the principal agent"]
[]
[null,"Water supply pipes and other piping that may be encountered and found necessary to disconnect or cut, shall be effectually stopped off or grubbed up and removed, and any new connections that may be necessary shall be made with proper fittings, to the satisfaction of the principal agent"]
[]
[null,"Removal of materials : "]
[]
[null,"Where removal is included in the heading, sub-heading or item description, prices shall be deemed to include for the necessary costs in removal and appropriate disposal of materials including but not limited to labour, transportation and disposal costs. No further claims in this regard will be entertained"]
[]
[null,"TEMPORARY WORKS"]
[]
[null,"Metalwork (CPAP work group No. 136)"]
[]
[1,"1.5m \"Bonnox\" wire mesh temporary fencing with shade cloth","m",652,null,{"$f":"D1193*E1193","v":0}]
[]
[2,"Double gate 3 x 1.5m high","No",1,null,{"$f":"D1195*E1195","v":0}]
[]
[null,"THE FOLLOWING TO DRY STACK RETAINING WALL"]
[]
[null,"Precast concrete interlocking planter blocks finished smooth on exposed surfaces with stepped face and curves as required to suit slopes with planter blocks laid with horizontal bed joints to 60 degree slope including backfilling with earth obtained from the excavations and filling the blocks with garden soil lightly tamped as the work proceeds "]
[]
[null,"Earthworks (CPAP Work Group No. 104)"]
[]
[3,"Excavation not exceeding 2m deep for trenches including risk of collapse, carting away, etc","m3",58,null,{"$f":"D1203*E1203","v":0}]
[]
[4,"Soilcrete backfilling stabilised with 6% cement and compacted to 95% mod aashto density in minimum layers of 150mm","m3",11,null,{"$f":"D1205*E1205","v":0}]
[]
[null,"Concrete (CPAP Work Group No. 110)"]
[]
[5,"25MPa/19mm Reinforced concrete in foundation","m3",22,null,{"$f":"D1209*E1209","v":0}]
[]
[6,"\"Infraset Paving Terrace Blok® Concrete Retaining Walls or equally aproved\" TB500 Interlocking blocks in foundations","m2",45,null,{"$f":"D1211*E1211","v":0}]
[]
[7,"\"Infraset Paving Terrace Blok® Concrete Retaining Walls or equally aproved\" TB500 Interlocking blocks","m2",135,null,{"$f":"D1213*E1213","v":0}]
[]
[8,"Extra over for filling in retaining blok with 25MPa/19mm unreinforced concrete in foundations","m3",3,null,{"$f":"D1215*E1215","v":0}]
[]
[null,"Drainage (CPAP Work Group No. 146) "]
[]
[9,"Geogrid 100 x 100 at 500mm laps vertically behind wall","m2",135,null,{"$f":"D1219*E1219","v":0}]
[]
[10,"160mm Diameter \"Drainex or equally aproved\" slotted pipe encased and including 19mm stones wrapped in bidem","m",90,null,{"$f":"D1221*E1221","v":0}]
[]
[11,"50mm Diameter PVC weepholes 250mm long wrapped in bidem","No",540,null,{"$f":"D1223*E1223","v":0}]
[]
[12,"Steel reinforcement of various diameters to concrete foundations","t",3.3,null,{"$f":"D1225*E1225","v":0}]
[]
[null,"THE FOLLOWING TO BALUSTRADE WALLS"]
[]
[null,"Earthworks (CPAP Work Group No. 104)"]
[]
[13,"Excavation in earth not exceeding 2m deep for trenches","m3",14,null,{"$f":"D1231*E1231","v":0}]
[]
[14,"Extra over trench and hole excavations in earth for excavation in soft rock","m3",1,null,{"$f":"D1233*E1233","v":0}]
[]
[15,"Extra over trench and hole excavations in earth for excavation in hard rock","m3",1,null,{"$f":"D1235*E1235","v":0}]
[]
[16,"Risk of collapse of excavations to sides of trench and hole excavations not exceeding 1,5m deep","m2",40,null,{"$f":"D1237*E1237","v":0}]
[]
[17,"Keeping excavations free of all water other than subterranean water","Item",1,null,{"$f":"D1239*E1239","v":0}]
[]
[18,"Earth filling obtained from the excavations and/or prescribed stock piles on site compacted to 98% Mod AASHTO density for backfilling to trenches, holes, etc","m3",5,null,{"$f":"D1241*E1241","v":0}]
[]
[19,"150mm Thick earth filling of G2 quality supplied by the contractor compacted to 90% Mod AASHTO density","m3",5,null,{"$f":"D1243*E1243","v":0}]
[]
[20,"In-situ dry density (sand replacement) test in accordance with method A10 (a) of TMH 1","No",5,null,{"$f":"D1245*E1245","v":0}]
[]
[21,"Compaction of ground surface under trenches etc including scarifying for a depth of 150mm, breaking down oversize material, adding suitable material where necessary and compacting to 95% Mod AASHTO density","m2",14,null,{"$f":"D1247*E1247","v":0}]
[]
[22,"Soil poisoning under trenches etc including forming and poisoning shallow furrows against foundation walls etc, filling in furrows and ramming","m2",10,null,{"$f":"D1249*E1249","v":0}]
[]
[null,"Concrete (CPAP Work Group No.110)"]
[]
[23,"25MPa/19mm Reinforced concrete in surface beds and thickenings, etc cast in panels on waterproofing","m3",4,null,{"$f":"D1253*E1253","v":0}]
[]
[null,"Fabric reinforcement (CPAP Work Group 114)"]
[]
[24,"Steel reinforcement of various diameters to concrete foundations","t",0.63,null,{"$f":"D1257*E1257","v":0}]
[]
[null,"Masonry (CPAP Work Group No. 116)"]
[]
[25,"Brickwork in foundations of NFX bricks (14MPa Nominal Compressive Strength) in class I mortar in One brick walls","m2",20,null,{"$f":"D1261*E1261","v":0}]
[]
[26,"Brickwork in super structure of NFP bricks (14MPa Nominal Compressive Strength) in class I mortar in One brick walls","m2",20,null,{"$f":"D1263*E1263","v":0}]
[]
[27,"Extra over brickwork for face brickwork for foundations in \"Corobrik Firelight Satin FBX\" face bricks, with recessed vertical and horizontal jointing","m2",20,null,{"$f":"D1265*E1265","v":0}]
[]
[28,"Extra over brickwork for face brickwork for super structure in \"Corobrik Firelight Satin FBX\" face bricks, with recessed vertical and horizontal jointing","m2",20,null,{"$f":"D1267*E1267","v":0}]
[]
[29,"Extra over brickwork for brick-on-flat header course band","m",20,null,{"$f":"D1269*E1269","v":0}]
[]
[30,"150mm Wide brickwork reinforcement built in horizontally","m",100,null,{"$f":"D1271*E1271","v":0}]
[]
[null,"V-DRAINS "]
[]
[null,"Earthworks (CPAP Work Group No. 104)"]
[]
[31,"Reduce levels in earth not exceeding 2m deep","m3",103,null,{"$f":"D1277*E1277","v":0}]
[]
[32,"Extra over all excavations for loading, carting and dumping surplus excavated material off site to a dumping site to be found by the Contractor (no allowance made for increase in bulk)","m3",103,null,{"$f":"D1279*E1279","v":0}]
[]
[33,"Backfilling with  G5 material supplied and carted onto site by the Contractor, compacted to a density of at least 95% Mod. AASHTO maximum density under v-drains  ","m3",55,null,{"$f":"D1281*E1281","v":0}]
[]
[34,"Coarse river sand supplied by the contractor under v-drains, etc.","m3",10,null,{"$f":"D1283*E1283","v":0}]
[]
[35,"Keeping excavations free of all water other than subterranean water","Item",1,null,{"$f":"D1285*E1285","v":0}]
[]
[36,"In-situ dry density (sand replacement) test in accordance with method A10 (a) of TMH 1","No",9,null,{"$f":"D1287*E1287","v":0}]
[]
[37,"Maximum dry density and optimum moisture content test in accordance with method A7 of TMH 1 ","No",4,null,{"$f":"D1289*E1289","v":0}]
[]
[38,"Atterberg limits test in accordance with methods A2 to A4 of TMH1  ","No",2,null,{"$f":"D1291*E1291","v":0}]
[]
[39,"Compaction of ground surface under V-drains, etc., including scarifying for a depth of 150mm, breaking down oversize material, adding suitable material where necessary and compacting to 95% Mod. AASHTO density","m2",345,null,{"$f":"D1293*E1293","v":0}]
[]
[40,"Approved brand of anti-termite soil poison applied by a registered pest control company and guaranteed against termite infestation for ten years under V-drains, etc. including forming and poisoning shallow furrows against foundation walls etc., filling in furrows and ramming","m2",345,null,{"$f":"D1295*E1295","v":0}]
[]
[null,"Concrete (CPAP Work Group No. 110)"]
[]
[41,"25MPa/19mm Reinforced concrete V-drains cast against compacted earth laid to falls and currents.","m3",55,null,{"$f":"D1299*E1299","v":0}]
[]
[42,"Finishing to top surfaces of concrete with smooth wood float (Class FM2) to V-drains to falls and currents","m2",345,null,{"$f":"D1301*E1301","v":0}]
[]
[43,"Movement joint not exceeding 300mm high formed with one layer of 10mm 'Masonite Flexi joint Board' or other equally approved approved  bitumen impregnated softboard filler board vertically between block and concrete surfaces.","m",546,null,{"$f":"D1303*E1303","v":0}]
[]
[44,"Making and testing set of three 150 x 150 x 150mm concrete strength test cube (Provisional)","No",9,null,{"$f":"D1305*E1305","v":0}]
[]
[null,"Formwork (CPAP Work Group No. 111)"]
[]
[45,"Class FM2 ordinary finish formwork to edges not exceeding 300mm high","m",431,null,{"$f":"D1309*E1309","v":0}]
[]
[null,"Reinforcement (CPAP Work Group No. 114)"]
[]
[46,"Type ref. 193 fabric reinforcement in v-drains ","m2",345,null,{"$f":"D1313*E1313","v":0}]
[]
[null,"Waterproofing (CPAP Work Group No. 120)"]
[]
[47,"One layer of 375 micron \"Consol Plastics\" waterproof sheeting sealed at laps","m2",345,null,{"$f":"D1317*E1317","v":0}]
[]
[48,"Thioflex 600' or other equally approved two-part polysulphide flexible joint sealants, including backing cord, bond breaker, primer, etc., in horizontal joints10 x 10mm at expansion joints.","m",546,null,{"$f":"D1319*E1319","v":0}]
[]
[null,"Drainage (CPAP Work Group No. 146) "]
[]
[null,"Class 34 uPVC pipes"]
[]
[49,"110mm Pipes laid in and including trenches not exceeding 1m deep","m",110,null,{"$f":"D1325*E1325","v":0}]
[]
[null,"Gulleys, inlet manholes, inspection chambers, etc"]
[]
[50,"Inspection chamber 600 x 600mm and not exceeding 750mm deep internally complete","No",7,null,{"$f":"D1329*E1329","v":0}]
[]
[null,"Gratings, covers, etc"]
[]
[51,"300 x 450mm x 53.2kg Cast iron dished grating and frame (Saint Gobain code 2880)","No",7,null,{"$f":"D1333*E1333","v":0}]
[]
[null,"Class 100D concrete pipes with interlocking joints"]
[]
[52,"315mm Pipes laid in and including trenches exceeding 1m and not exceeding 2m deep","m",20,null,{"$f":"D1337*E1337","v":0}]
[]
[53,"450mm Pipes laid in and including trenches exceeding 1m and not exceeding 2m deep","m",45,null,{"$f":"D1339*E1339","v":0}]
[]
[null,"Sumps, catchpits, inspection chambers, etc. including concrete kerbs or precast concrete cover slabs, gratings and covers"]
[]
[54,"Construct 230mm brick catchpit approximately 1255mm x 940mm overall size on plan and approximately 1100mm high, including excavation in earth and cart away all excess material, 25MPa concrete surface bed with 2 layers of 395 Mesh, concrete benching for 450mm diameter pipe including 520 x 790 heavy duty stormwater grating and frame","m",2,null,{"$f":"D1343*E1343","v":0}]
[]
[null,"CONCRETE APRONS "]
[]
[null,"Earthworks (CPAP Work Group No. 104)"]
[]
[55,"Reduce levels in earth not exceeding 2m deep","m3",172,null,{"$f":"D1349*E1349","v":0}]
[]
[56,"Extra over all excavations for loading, carting and dumping surplus excavated material off site to a dumping site to be found by the Contractor (no allowance made for increase in bulk)","m3",172,null,{"$f":"D1351*E1351","v":0}]
[]
[57,"Backfilling with  G5 material supplied and carted onto site by the Contractor, compacted to a density of at least 95% Mod. AASHTO maximum density under aprons  ","m3",86,null,{"$f":"D1353*E1353","v":0}]
[]
[58,"Coarse river sand supplied by the contractor under aprons, etc.","m3",17,null,{"$f":"D1355*E1355","v":0}]
[]
[59,"Keeping excavations free of all water other than subterranean water","Item",1,null,{"$f":"D1357*E1357","v":0}]
[]
[60,"In-situ dry density (sand replacement) test in accordance with method A10 (a) of TMH 1","No",14,null,{"$f":"D1359*E1359","v":0}]
[]
[61,"Maximum dry density and optimum moisture content test in accordance with method A7 of TMH 1 ","No",7,null,{"$f":"D1361*E1361","v":0}]
[]
[62,"Atterberg limits test in accordance with methods A2 to A4 of TMH1  ","No",3,null,{"$f":"D1363*E1363","v":0}]
[]
[63,"Compaction of ground surface under aprons, etc., including scarifying for a depth of 150mm, breaking down oversize material, adding suitable material where necessary and compacting to 95% Mod. AASHTO density","m2",574,null,{"$f":"D1365*E1365","v":0}]
[]
[64,"Approved brand of anti-termite soil poison applied by a registered pest control company and guaranteed against termite infestation for ten years under floors etc including forming and poisoning shallow furrows against foundation walls etc., filling in furrows and ramming","m2",574,null,{"$f":"D1367*E1367","v":0}]
[]
[null,"Concrete (CPAP Work Group No. 110)"]
[]
[65,"25MPa/19mm Reinforced concrete aprons cast against compacted earth laid to falls and currents.","m3",86,null,{"$f":"D1371*E1371","v":0}]
[]
[66,"Finishing to top surfaces of concrete with smooth wood float (Class FM2) to aprons to falls and currents","m2",574,null,{"$f":"D1373*E1373","v":0}]
[]
[67,"Movement joint not exceeding 300mm high formed with one layer of 10mm 'Masonite Flexi joint Board' or other equally approved approved  bitumen impregnated softboard filler board vertically between block and concrete surfaces.","m",765,null,{"$f":"D1375*E1375","v":0}]
[]
[68,"Making and testing set of three 150 x 150 x 150mm concrete strength test cube (Provisional)","No",14,null,{"$f":"D1377*E1377","v":0}]
[]
[null,"Formwork (CPAP Work Group No. 111)"]
[]
[69,"Class FM2 ordinary finish formwork to edges not exceeding 300mm high","m",574,null,{"$f":"D1381*E1381","v":0}]
[]
[null,"Reinforcement (CPAP Work Group No. 114)"]
[]
[70,"Type ref. 193 fabric reinforcement in aprons ","m2",574,null,{"$f":"D1385*E1385","v":0}]
[]
[null,"Waterproofing (CPAP Work Group No. 120)"]
[]
[71,"One layer of 375 micron \"Consol Plastics\" waterproof sheeting sealed at laps","m2",574,null,{"$f":"D1389*E1389","v":0}]
[]
[72,"Thioflex 600' or other equally approved two-part polysulphide flexible joint sealants, including backing cord, bond breaker, primer, etc., in horizontal joints10 x 10mm at expansion joints.","m",765,null,{"$f":"D1391*E1391","v":0}]
[]
[null,"THE FOLLOWING TO RAIN WATER HARVESTING TANKS, ETC."]
[]
[null,"Polyethlene water storage tanks"]
[]
[null,"Plumbing (CPAP Work Group No. 148)"]
[]
[73,"5000 Litres rainwater tank or similar approved, with 75mm Diameter opening for downpipe from gutter including 50mm Diameter overflow opening with 4mm Diameter galvanised wire looped through top of tank isolated with 15mm diameter hose to top of tank and anchored to top of slab with 'Hilti' hooks drilled into slab at all four corners and 15mm hose bib tap","No",8,null,{"$f":"D1399*E1399","v":0}]
[]
[74,"20mm COBRA 541 or equally aproved tank locking tap fitted to a 22mm extension pipe with barrel nipple & galvanised socket","No",8,null,{"$f":"D1401*E1401","v":0}]
[]
[null,"Tank stand"]
[]
[null,"Earthworks (CPAP Work Group No. 104)"]
[]
[75,"Excavation in earth not exceeding 2m deep to reduce levels","m3",72,null,{"$f":"D1407*E1407","v":0}]
[]
[76,"Risk of collapse of sides of trench and hole excavations not exceeding 1,5m deep","m2",205,null,{"$f":"D1409*E1409","v":0}]
[]
[77,"Extra over all excavations for loading, carting and dumping surplus excavated material (no allowance made for increase in bulk) off site to be located by the contractor","m3",41,null,{"$f":"D1411*E1411","v":0}]
[]
[78,"Backfilling to trenches, holes, etc.,","m3",31,null,{"$f":"D1413*E1413","v":0}]
[]
[79,"Keeping excavations free of all water other than subterranean water ","Item",1,null,{"$f":"D1415*E1415","v":0}]
[]
[null,"Concrete (CPAP Work Group No.110)"]
[]
[80,"Reinforced concrete Class 25/19 in surface beds ","m3",13,null,{"$f":"D1419*E1419","v":0}]
[]
[81,"Reinforced concrete Class 25/19 in strip footings ","m3",27,null,{"$f":"D1421*E1421","v":0}]
[]
[82,"Finishing top surfaces of concrete smooth with a power float to surface beds, slabs, etc to falls","m2",128,null,{"$f":"D1423*E1423","v":0}]
[]
[null,"Formwork (CPAP Work Group No. 111)"]
[]
[83,"Rough formwork to sides edges, risers, ends and reveals not exceeding 300mm high or wide","m",128,null,{"$f":"D1427*E1427","v":0}]
[]
[null,"Reinforcement (CPAP Work Group No. 114)"]
[]
[84,"Steel reinforcement of various diameters to concrete foundations","t",4.05,null,{"$f":"D1431*E1431","v":0}]
[]
[85,"Type 617 fabric reinforcement","m2",128,null,{"$f":"D1433*E1433","v":0}]
[]
[null,"Masonry (CPAP Work Group No. 116)"]
[]
[86,"One Brickwork of NFX bricks (14 MPa nominal compressive strength) in Class I mortar ","m2",8,null,{"$f":"D1437*E1437","v":0}]
[]
[null,"THE FOLLOWING TO COVERED WALKWAYS"]
[]
[null,"Earthworks (CPAP Work Group No. 104)"]
[]
[87,"Excavation in earth not exceeding 2m deep for reducing levels under floors","m3",158,null,{"$f":"D1443*E1443","v":0}]
[]
[88,"Extra over trench and hole excavations in earth for excavation in soft rock","m3",16,null,{"$f":"D1445*E1445","v":0}]
[]
[89,"Extra over trench and hole excavations in earth for excavation in hard rock","m3",2,null,{"$f":"D1447*E1447","v":0}]
[]
[90,"Keeping excavations free of all water other than subterranean water","Item",1,null,{"$f":"D1449*E1449","v":0}]
[]
[91,"Earth filling obtained from the excavations and/or prescribed stock piles on site compacted to 98% Mod AASHTO density for backfilling to trenches, holes, etc","m3",68,null,{"$f":"D1451*E1451","v":0}]
[]
[92,"150mm Thick earth filling of G2 quality supplied by the contractor compacted to 90% Mod AASHTO density","m3",56,null,{"$f":"D1453*E1453","v":0}]
[]
[93,"Coarse river sand supplied by the contractor under floors etc","m3",23,null,{"$f":"D1455*E1455","v":0}]
[]
[94,"In-situ dry density (sand replacement) test in accordance with method A10 (a) of TMH 1","No",18,null,{"$f":"D1457*E1457","v":0}]
[]
[95,"Maximum dry density and optimum moisture content test in accordance with method A7 of TMH 1","No",6,null,{"$f":"D1459*E1459","v":0}]
[]
[96,"Atterberg limits test in accordance with methods A2 to A4 of TMH1","No",5,null,{"$f":"D1461*E1461","v":0}]
[]
[97,"One layer of 250 micron \"Consol Plastics Gunplas USB Green or equally aproved\" waterproof sheeting sealed at laps with \"Gunplas Pressure Sensitive Tape or equally aproved\" under pavings","m2",450,null,{"$f":"D1463*E1463","v":0}]
[]
[98,"Compaction of ground surface under floors etc including scarifying for a depth of 150mm, breaking down oversize material, adding suitable material where necessary and compacting to 95% Mod AASHTO density","m2",450,null,{"$f":"D1465*E1465","v":0}]
[]
[99,"Soil poisoning under floors etc including forming and poisoning shallow furrows against foundation walls etc, filling in furrows and ramming","m2",450,null,{"$f":"D1467*E1467","v":0}]
[]
[null,"Concrete (CPAP Work Group No. 110)"]
[]
[100,"25MPa/19mm Reinforced concrete in surface beds and thickenings, etc cast in panels on waterproofing","m3",90,null,{"$f":"D1471*E1471","v":0}]
[]
[101,"Making and testing 150 x 150 x 150mm concrete strength test cube (Provisional)","Sets",9,null,{"$f":"D1473*E1473","v":0}]
[]
[102,"Finishing top surfaces of concrete smooth with a power float to surface beds, slabs, etc to falls","m2",450,null,{"$f":"D1475*E1475","v":0}]
[]
[null,"Formwork (CPAP Work Group No. 111)"]
[]
[103,"Rough formwork to edges, risers, ends and reveals not exceeding 300mm high or wide","m",380,null,{"$f":"D1479*E1479","v":0}]
[]
[null,"Reinforcement (CPAP Work Group No. 114)"]
[]
[104,"Type 617 fabric reinforcement","m2",450,null,{"$f":"D1483*E1483","v":0}]
[]
["Bill No. 16","Carried to Summary",{"$nulls":3},{"$f":"SUM(F1187:F1484)","v":0}]
[]
[null,"BILL NO. 17"]
[]
[null,"PROVISIONAL SUMS"]
[]
[null,"Desludging of existing ablutions"]
[]
[1,"Provide the Amount of R 30,000.00 (Thirty thousand Rand) for the desludging of existing ablutions, septic tanks and sewer drains as determined by the Principal Agent","Item",1,{"v":30000,"d":"30,000.00"},{"$f":"D1493*E1493","v":{"v":30000,"d":"R30,000.00"}}]
[]
[2,"Allow for profit and general attendance ","%",null,{"v":30000,"d":"30,000.00"},{"$f":"D1495*E1495","v":0}]
[]
[null,"Repairs to existing structures"]
[]
[3,"Provide the Amount of R 30,000.00 (Thirty thousand Rand) for structural repairs in existing classrooms as per the Structural Engineers requirements","Item",1,{"v":30000,"d":"30,000.00"},{"$f":"D1499*E1499","v":{"v":30000,"d":"R30,000.00"}}]
[]
[4,"Allow for profit and general attendance ","%",null,{"v":30000,"d":"30,000.00"},{"$f":"D1501*E1501","v":0}]
[]
["Bill No. 17","Carried to Summary",{"$nulls":3},{"$f":"SUM(F1490:F1502)","v":{"v":60000,"d":"R60,000.00"}}]
[]
[1,"Alterations (Provisional)","Page",13,0,{"$f":"F179","v":0}]
[]
[2,"Earthwork (Provisional)","Page",17,0,{"$f":"F245","v":0}]
[]
[3,"Concrete, Formwork and Reinforcement ","Page",22,0,{"$f":"F303","v":0}]
[]
[4,"Masonry","Page",25,0,{"$f":"F355","v":0}]
[]
[5,"Waterproofing ","Page",28,0,{"$f":"F389","v":0}]
[]
[6,"Roof Coverings","Page",33,0,{"$f":"F461","v":0}]
[]
[7,"Carpentry and Joinery","Page",41,0,{"$f":"F581","v":0}]
[]
[8,"Ceilings, Partitions & Access Flooring","Page",45,0,{"$f":"F639","v":0}]
[]
[9,"Floor Coverings, Wall Linings, etc","Page",48,0,{"$f":"F683","v":0}]
[]
[10,"Ironmongery","Page",52,0,{"$f":"F737","v":0}]
[]
[11,"Metalwork","Page",57,0,{"$f":"F813","v":{"v":130000,"d":"R130,000.00"}}]
[]
[12,"Plastering","Page",61,0,{"$f":"F875","v":0}]
[]
[13,"Plumbing & Drainage (Provisional)","Page",70,0,{"$f":"F1043","v":0}]
[]
[14,"Glazing","Page",73,0,{"$f":"F1081","v":0}]
[]
[15,"Paintwork","Page",78,0,{"$f":"F1163","v":0}]
[]
[16,"External Works (Provisional)","Page",98,0,{"$f":"F1485","v":0}]
[]
[17,"Provisional Sums","Page",99,0,{"$f":"F1503","v":{"v":60000,"d":"R60,000.00"}}]
[]
[null,"Sub-total Excluding Vat","ST",null,null,{"$f":"SUM(F1505:F1538)","v":{"v":190000,"d":"R190,000.00"}}]

{"sheet":"Section 3 - Electrical Works","index":3,"n_rows":372,"n_cols":6,"rows_kept":372}
["SECTION NO. 3"]
["SCHEDULE NO 3:  INSTALLATION B: 2) ELECTRICAL DISTRIBUTION SYSTEM -  ELECTRICAL WORK"]
["IMBIZANE PRIMARY SCHOOL"]
[]
["ITEM","DESCRIPTION","UNIT","QTY","RATE","TOTAL"]
["NO"]
[]
["A","LOW VOLTAGE CABLE "]
[null,"Provide, install, test and commission the following 1000V"]
[null,"PVC/SWA/PVC copper cables.  Prices shall allow for the "]
[null,"installation of cables in cable ducts, through sleeves, "]
[null,"conduit or installation against vertical and horizontal levels."]
[]
[1,"10mm² x 3 Core ECC Copper Cable"]
[null,"Supply","m",646,null,{"$f":"D15*E15","v":0}]
[null,"Install","m",{"$f":"D15","v":646},null,{"$f":"D16*E16","v":0}]
[]
[2,"6mm² x 3 Core ECC Copper Cable"]
[null,"Supply","m",200,null,{"$f":"D19*E19","v":0}]
[null,"Install","m",{"$f":"D19","v":200},null,{"$f":"D20*E20","v":0}]
["B","TERMINATIONS"]
[null,"Terminate and make off the following 1000V PVC/SWA/PVC"]
[null,"cables in a cable gland according to the manufacturer's "]
[null,"instructions.  Provide the cores with lugs and bolt onto "]
[null,"terminals.  The cable gland and marking of the cable shall "]
[null,"also be allowed for."]
[]
[1,"10mm² x 3 Core ECC Copper Cable"]
[null,"Supply","ea",6,null,{"$f":"D29*E29","v":0}]
[null,"Install","ea",{"$f":"D29","v":6},null,0]
[]
[2,"6mm² x 3 Core ECC Copper Cable"]
[null,"Supply","ea",8,null,{"$f":"D33*E33","v":0}]
[null,"Install","ea",{"$f":"D33","v":8},null,0]
[]
["C","CABLE SLEEVES"]
[null,"Provide and install the following UPVC sleeves "]
[null,"in the ground complete with mild-steel draw wire."]
[]
[1,"50mm Sleeves"]
[null,"Supply","m",620,null,{"$f":"D41*E41","v":0}]
[null,"Install","m",{"$f":"D41","v":620},null,0]
[]
[2,"50mm Bends"]
[null,"Supply","ea",6,null,{"$f":"D45*E45","v":0}]
[null,"Install","ea",{"$f":"D45","v":6},null,0]
[]
[3,"Electrical 800 x 800 x 600mm double brick manhole. To be "]
[null,"complete with cover"]
[null,"Supply","ea",2,null,{"$f":"D50*E50","v":0}]
[null,"Install","ea",{"$f":"D50","v":2},null,0]
[]
[]
[]
[]
[]
["Carried forward to page ",{"$nulls":4},{"$f":"SUM(F10:F56)","v":0}]
["ITEM","DESCRIPTION","UNIT","QTY","RATE","AMOUNT"]
["NO"]
[]
["Brought forward from page ",{"$nulls":4},{"$f":"F57","v":0}]
[]
[]
["D","DISTRIBUTION BOARDS."]
[null,"New distribution boards, kiosks, etc., supplied and installed"]
[null,"in position, complete with all busbar work, switchgear,"]
[null,"terminals, wiring, lacing, conduit terminations, meters, and "]
[null,"all other items, including full labelling and legend card, all in "]
[null,"accordance with the  Distribution Board schematics:"]
[]
[1,"DB-A Main Distribution board"]
[null,"Supply","ea",1,null,{"$f":"D72*E72","v":0}]
[null,"Install","ea",{"$f":"D72","v":1},null,0]
[]
[2,"DB-B"]
[null,"Supply","ea",1,null,{"$f":"D76*E76","v":0}]
[null,"Install","ea",{"$f":"D76","v":1},null,0]
[]
[3,"DB-C"]
[null,"Supply","ea",1,null,{"$f":"D80*E80","v":0}]
[null,"Install","ea",{"$f":"D80","v":1},null,0]
[]
[4,"DB-E (Weather Proof)"]
[null,"Supply","ea",1,null,{"$f":"D84*E84","v":0}]
[null,"Install","ea",{"$f":"D84","v":1},null,0]
[]
[5,"DB-F (Weather Proof)"]
[null,"Supply","ea",1,null,{"$f":"D88*E88","v":0}]
[null,"Install","ea",{"$f":"D88","v":1},null,0]
[]
[6,"DB-G (Weather Proof)"]
[null,"Supply","ea",1,null,{"$f":"D92*E92","v":0}]
[null,"Install","ea",{"$f":"D92","v":1},null,0]
[]
[7,"DB-H (Weather Proof)"]
[null,"Supply","ea",1,null,{"$f":"D96*E96","v":0}]
[null,"Install","ea",{"$f":"D96","v":1},null,0]
[]
["E","EXCAVATIONS"]
[null,"All prices below shall include the excavation of trenches and "]
[null,"holes, separating of stones,their original finish."]
[]
[1,"Excavate in soft ground","m³",115,null,{"$f":"D103*E103","v":0}]
[]
[2,"Excavate in soft rock","m³",15,null,{"$f":"D105*E105","v":0}]
[]
[3,"Excavate in hard rock","m³",5,null,{"$f":"D107*E107","v":0}]
[]
[4,"Suppy cable marker tape & Install 400mm below finished"]
[null,"ground level.","m",620,null,{"$f":"D110*E110","v":0}]
[]
[]
["Carried forward to page ",{"$nulls":4},{"$f":"SUM(F60:F112)","v":0}]
[]
["ITEM","DESCRIPTION","UNIT","QTY","RATE","AMOUNT"]
["NO"]
[]
["Brought forward from page ",{"$nulls":4},{"$f":"F113","v":0}]
[]
[]
["F","REMOVAL OF EXISTING ELECTRICAL INSTALLATION"]
[]
[1,"Removal of existing Electrical installation and re-instating of "]
[null,"usable light fittings in Block A","Sum",1,null,{"$f":"D124*E124","v":0}]
[]
[2,"Removal of existing Electrical installation and re-instating of "]
[null,"usable light fittings in Block B","Sum",1,null,{"$f":"D127*E127","v":0}]
[]
[3,"Removal of existing Electrical installation and re-instating of "]
[null,"usable light fittings in Block C","Sum",1,null,{"$f":"D130*E130","v":0}]
[]
["G","LIGHTNING PROTECTION INSTALLATION AND ISSUING OF CERTIFICATE"]
[]
[1,"Block A (2 x classrooms -  136m2) installation and provide "]
[null,"lightning Protection Certificate for Block A","Sum",1,null,{"$f":"D135*E135","v":0}]
[]
[2,"Block B (3 x classrooms -  192m2) installation and provide "]
[null,"lightning Protection Certificate for Block B","Sum",1,null,{"$f":"D138*E138","v":0}]
[]
[3,"Block C (3 x classrooms -  256m2) installation and provide "]
[null,"lightning Protection Certificate for Block C","Sum",1,null,{"$f":"D141*E141","v":0}]
[]
[4,"Block D (3 x classrooms -  208m2) installation and provide"]
[null,"lightning Protection Certificate for Block D","Sum",1,null,{"$f":"D144*E144","v":0}]
[]
[5,"Block E (Toilet block -  208m2) installation and provide"]
[null,"lightning Protection Certificate for Block E","Sum",1,null,{"$f":"D147*E147","v":0}]
[]
[6,"Block F (Toilet block -  208m2) installation and provide"]
[null,"lightning Protection Certificate for Block F","Sum",1,null,{"$f":"D150*E150","v":0}]
[]
[7,"Block G (Toilet block -  208m2) installation and provide"]
[null,"lightning Protection Certificate for Block G","Sum",1,null,{"$f":"D153*E153","v":0}]
[]
[8,"Block H (Toilet block -  208m2) installation and provide"]
[null,"lightning Protection Certificate for Block H","Sum",1,null,{"$f":"D156*E156","v":0}]
[]
["H","Testing and Commissioning Electrical Installation, Cables "]
[null,"Distribution Boards and Issuing COC as per SANS 10142."]
[]
[1,"Block A (DB-A)","Sum",1,null,{"$f":"D161*E161","v":0}]
[]
[2,"Block B (DB-B)","Sum",1,null,{"$f":"D163*E163","v":0}]
[]
[3,"Block C (DB-C)","Sum",1,null,{"$f":"D165*E165","v":0}]
[]
["Carried forward to page ",{"$nulls":4},{"$f":"SUM(F117:F166)","v":0}]
[]
["ITEM","DESCRIPTION","UNIT","QTY","RATE","AMOUNT"]
["NO"]
[]
["Brought forward from page ",{"$nulls":4},{"$f":"F167","v":0}]
[]
[]
[4,"Block D (Existing DB-D)","Sum",1,null,{"$f":"D175*E175","v":0}]
[]
[5,"Block E (DB-E)","Sum",1,null,{"$f":"D177*E177","v":0}]
[]
[6,"Block F (DB-F)","Sum",1,null,{"$f":"D179*E179","v":0}]
[]
[7,"Block G (DB-G)","Sum",1,null,{"$f":"D181*E181","v":0}]
[]
[8,"Block H (DB-H)","Sum",1,null,{"$f":"D183*E183","v":0}]
[]
["I","5% Allowance for builders work","Sum",1,null,{"$f":"D185*E185","v":0}]
[]
["J","Bill up rates"]
[]
[null,"Soil resistivity test","Sum",null,null,{"$f":"D189*E189","v":0}]
[]
[null,"50mm Aluminium conductor","m",null,null,{"$f":"D191*E191","v":0}]
[]
[null,"50mm Copper conductor","m",null,null,{"$f":"D193*E193","v":0}]
[]
[null,"J1 Test box","ea",null,null,{"$f":"D195*E195","v":0}]
[]
[]
[]
[]
[]
["Carried forward to the summary page for electrical",{"$nulls":4},{"$f":"SUM(F171:F200)","v":0}]
["SCHEDULE NO 4:  INSTALLATION C: 2) ELECTRICAL INSTALLATION IN BUILDINGS -   WORK"]
["IMBIZANE PRIMARY SCHOOL: BLOCK A, B, C, E, F, G & H"]
[]
["ITEM","DESCRIPTION","UNIT","QTY","RATE","AMOUNT"]
["NO"]
["A","CONDUIT"]
[1,"20mm Diameter PVC Conduit"]
[null,"Supply","m",2200,null,{"$f":"D209*E209","v":0}]
[null,"Install ","m",{"$f":"D209","v":2200},null,{"$f":"D210*E210","v":0}]
[]
[2,"25mm Diameter PVC conduit"]
[null,"Supply","m",1700,null,{"$f":"D213*E213","v":0}]
[null,"Install","m",{"$f":"D213","v":1700},null,{"$f":"D214*E214","v":0}]
[]
["B","CIRCUIT WIRING"]
[null,"The supply and installation in conduit of"]
[null," stranded copper PVCinsulated conductors "]
[null," in groups."]
[]
[1,"2 x 1.5mm² and 2.5mm² earth  wire"]
[null,"Supply","m",{"$f":"SUM(D209*3)+D209*20%","v":7040},null,{"$f":"D222*E222","v":0}]
[null,"Install","m",{"$f":"D222","v":7040},null,0]
[]
[2,"2 x 2.5mm² and 2.5mm² earth  wire"]
[null,"Supply","m",{"$f":"SUM(D213*3)+D213*20%","v":5440},null,{"$f":"D226*E226","v":0}]
[null,"Install","m",{"$f":"D226","v":5440},null,0]
[]
[3,"Draw wire"]
[null,"Supply","m",{"$f":"SUM(D210:D213)","v":3900},null,{"$f":"D230*E230","v":0}]
[null,"Install","m",{"$f":"D230","v":3900},null,0]
[]
["C","CONDUIT BOXES"]
[]
[1,"50mm round PVC surface box "]
[null,"Supply","ea",400,null,{"$f":"D236*E236","v":0}]
[null,"Install","ea",{"$f":"D236","v":400},null,0]
[]
[2,"100 x 50 x 50mm galvanised box flush in  brickwork      "]
[null,"Supply","ea",37,null,{"$f":"D240*E240","v":0}]
[null,"Install","ea",{"$f":"D240","v":37},null,0]
[]
[3,"100mm x 100mm x 50mm galvanised box "]
[null,"box  cover plate "]
[null,"Supply","ea",36,null,{"$f":"D245*E245","v":0}]
[null,"Install","ea",{"$f":"D245","v":36},null,{"$f":"D246*E246","v":0}]
{"$rows_empty":11}
["Carried forward to page ",{"$nulls":4},{"$f":"SUM(F207:F257)","v":0}]
[]
["ITEM","DESCRIPTION","UNIT","QTY","RATE","AMOUNT"]
["NO"]
[]
["Brought forward from page ",{"$nulls":4},{"$f":"F258","v":0}]
[]
["D","LIGHT FITTINGS"]
[null,"Luminaires and accessories supplied complete"]
[null,"with lamps. All fittings to carry the SABS mark."]
[]
[1,"Type A luminaires"]
[null,"Supply","ea",80,null,{"$f":"D270*E270","v":0}]
[null,"Install","ea",{"$f":"D270","v":80},null,0]
[]
[2,"Type B luminaires"]
[null,"Supply","ea",77,null,{"$f":"D274*E274","v":0}]
[null,"Install","ea",{"$f":"D274","v":77},null,0]
[]
["E","SMALL POWER "]
[null,"Supply and installation complete with all  "]
[null,"covers and fixings."]
[]
[1,"Photo electric-cell with 65mm deep conduit box"]
[null,"Supply","ea",9,null,{"$f":"D282*E282","v":0}]
[null,"Install","ea",{"$f":"D282","v":9},null,0]
[]
[2,"Supply & Install 20A Double Pole , 220V Contactor "]
[null,"Supply","ea",9,null,{"$f":"D286*E286","v":0}]
[null,"Install","ea",{"$f":"D286","v":9},null,0]
[]
[3,"16A Double Socket Outlet in box"]
[null,"Supply","ea",36,null,{"$f":"D290*E290","v":0}]
[null,"Install","ea",{"$f":"D290","v":36},null,0]
[]
[4,"16A single lever one way light switch"]
[null,"Supply","ea",33,null,{"$f":"D294*E294","v":0}]
[null,"Install","ea",{"$f":"D294","v":33},null,0]
[]
[5,"Siren complete with all necessary equipment for wiring"]
[null,"Supply  ","ea",1,null,{"$f":"D298*E298","v":0}]
[null,"Install  ","ea",{"$f":"D298","v":1},null,0]
[]
[6,"Ceiling Fan complete with all necessary equipment and "]
[null,"to be switched with lighting circuits"]
[null,"Supply  ","ea",5,null,{"$f":"D303*E303","v":0}]
[null,"Install  ","ea",{"$f":"D303","v":5},null,0]
[]
[7,"16A Weather Proof single lever one way light switch"]
[null,"Supply","ea",4,null,{"$f":"D307*E307","v":0}]
[null,"Install","ea",{"$f":"D307","v":4},null,0]
{"$rows_empty":7}
["Carried forward to page ",{"$nulls":4},{"$f":"SUM(F262:F315)","v":0}]
[]
["ITEM","DESCRIPTION","UNIT","QTY","RATE","AMOUNT"]
["NO"]
[]
["Brought forward from page ",{"$nulls":4},{"$f":"F316","v":0}]
[]
[]
["F","POWER SKIRTING AND ACCESSORIES"]
[null,"Supply and install PVC power skirting and"]
[null,"accessories  with all fixings, end caps and"]
[null,"corners."]
[]
[1,"3 Compartment Grey power skirting body and cover."]
[null,"Supply  ","m",24,null,{"$f":"D330*E330","v":0}]
[null,"Install  ","m",{"$f":"D330","v":24},null,0]
[]
[2,"16A Dedicated socket outlet."]
[null,"Supply  ","ea",6,null,{"$f":"D334*E334","v":0}]
[null,"Install  ","ea",{"$f":"D334","v":6},null,0]
[]
[3,"16A Single socket outlet."]
[null,"Supply  ","ea",6,null,{"$f":"D338*E338","v":0}]
[null,"Install  ","ea",{"$f":"D338","v":6},null,0]
[]
["G","Earthing and bonding of complete installation ","sum",1,null,{"$f":"D341*E341","v":0}]
[]
["H","Test and Certify as per SANS 10142","sum",1,null,{"$f":"D343*E343","v":0}]
[]
["I","Earth Electrode  Installation","sum",1,null,{"$f":"D345*E345","v":0}]
[]
["Carried forward to the summary page for electrical ",{"$nulls":4},{"$f":"SUM(F320:F346)","v":0}]
[]
[null,"SUMMARY OF ELECTRICAL INSTALLATION"]
[]
[]
["ITEM",null,"DESCRIPTION",null,null,"AMOUNT"]
["NO"]
[]
[]
[]
[1,"SCHEDULE NO 3:  INSTALLATION B: ",{"$nulls":3},{"$f":"F201","v":0}]
[null,"ELECTRICAL DISTRIBUTION SYSTEM"]
[]
[]
[]
[]
[2,"SCHEDULE NO 4: INSTALLATION C:",{"$nulls":3},{"$f":"F347","v":0}]
[null,"ELECTRICAL INSTALLATION IN BUILDINGS"]
{"$rows_empty":7}
[null,"CARRIED FORWARD TO FINAL SUMMARY PAGE FOR BILLS OF QUANTITIES FOR IMBIZANE PRIMARY SCHOOL",{"$nulls":3},{"$f":"F357+F363","v":0}]

{"sheet":"Summary","index":4,"n_rows":52,"n_cols":4,"rows_kept":52}
[]
["ITEM NO.","FINAL SUMMARY",null,"AMOUNT"]
[]
[null,"Section No. 1"]
[]
[1,"Preliminaries",null,{"$f":"'Section 1 - Preliminaries'!F14","v":0}]
[]
[null,"Section No. 2"]
[]
[1,"Alterations (Provisional)",null,{"$f":"'Section 2 - Builders Work'!F1505","v":0}]
[]
[2,"Earthworks",null,{"$f":"'Section 2 - Builders Work'!F1507","v":0}]
[]
[3,"Concrete, Formwork & Reinforcement",null,{"$f":"'Section 2 - Builders Work'!F1509","v":0}]
[]
[4,"Masonry",null,{"$f":"'Section 2 - Builders Work'!F1511","v":0}]
[]
[5,"Waterproofing",null,{"$f":"'Section 2 - Builders Work'!F1513","v":0}]
[]
[6,"Roof Coverings",null,{"$f":"'Section 2 - Builders Work'!F1515","v":0}]
[]
[7,"Carpentry and Joinery",null,{"$f":"'Section 2 - Builders Work'!F1517","v":0}]
[]
[8,"Ceilings, Partitions & Access Flooring",null,{"$f":"'Section 2 - Builders Work'!F1519","v":0}]
[]
[9,"Floor Coverings, Wall Linings, Etc.",null,{"$f":"'Section 2 - Builders Work'!F1521","v":0}]
[]
[10,"Ironmongery",null,{"$f":"'Section 2 - Builders Work'!F1523","v":0}]
[]
[11,"Metalwork",null,{"$f":"'Section 2 - Builders Work'!F1525","v":{"v":130000,"d":"R130,000.00"}}]
[]
[12,"Plastering",null,{"$f":"'Section 2 - Builders Work'!F1527","v":0}]
[]
[13,"Plumbing & Drainage (Provisional) ",null,{"$f":"'Section 2 - Builders Work'!F1529","v":0}]
[]
[14,"Glazing ",null,{"$f":"'Section 2 - Builders Work'!F1531","v":0}]
[]
[15,"Paintwork",null,{"$f":"'Section 2 - Builders Work'!F1533","v":0}]
[]
[16,"External Works (Provisional)",null,{"$f":"'Section 2 - Builders Work'!F1535","v":0}]
[]
[17,"Provisional Sums",null,{"$f":"'Section 2 - Builders Work'!F1537","v":{"v":60000,"d":"R60,000.00"}}]
[]
[null,"Section No. 3"]
[]
[1,"Electrical Works (Provisional)",null,{"$f":"'Section 3 - Electrical Works'!F372","v":0}]
[]
[null,null,"Sub-Total",{"$f":"SUM(D5:D47)","v":{"v":190000,"d":"R190,000.00"}}]
[]
[null,null,"Vat @ 15%",{"$f":"D48*0.15","v":{"v":28500,"d":"R28,500.00"}}]
[]
[null,"Carried to Form of Tender","TOTAL",{"$f":"D48+D50","v":{"v":218500,"d":"R218,500.00"}}]